Workbook

Sheet Debit transactions
A1: Date | B1: Description | C1: Amount | D1: Running Bal. | E1: Who | F1: Bill to | G1: Column1 | H1: Expense Report? | I1: Invoice | J1: Charge Receipt
A2: 2022-01-01 | B2: Beginning balance as of 01/01/2022 | D2: 663.71 | E2: =IFERROR(INDEX(Lookup!$B$2:$C$5,MATCH(RIGHT(TRIM(Table14[[#This Row],[Description]]),4),Lookup!$B$2:$B$5,0),2),"") -> 
A3: 2022-01-03 | B3: OWL FOR THUNDERBI 01/02 PURCHASE WIESBADEN DEBIT CARD *7429 | C3: -11.38 | D3: =D2+Table14[[#This Row],[Amount]] -> 652.33 | E3: =IFERROR(INDEX(Lookup!$B$2:$C$5,MATCH(RIGHT(TRIM(Table14[[#This Row],[Description]]),4),Lookup!$B$2:$B$5,0),2),"") -> FWC | F3: AGG | G3: Outlook | H3: 221226 - FWC ER Mastercard EOY-2022 | I3: - | J3: 220102 - OWL invoice 3-47107.pdf
A4: 2022-01-03 | B4: Monthly Fee Business Adv Relationship | C4: -29.95 | D4: =D3+Table14[[#This Row],[Amount]] -> 622.38 | E4: =IFERROR(INDEX(Lookup!$B$2:$C$5,MATCH(RIGHT(TRIM(Table14[[#This Row],[Description]]),4),Lookup!$B$2:$B$5,0),2),"") ->  | F4: AGG | I4: -
A5: 2022-01-03 | B5: INTERNATIONAL TRANSACTION FEE 01/02 OWL FOR THUNDERBI WIESBADEN DEBIT CARD *7429 | C5: -0.34 | D5: =D4+Table14[[#This Row],[Amount]] -> 622.04 | E5: =IFERROR(INDEX(Lookup!$B$2:$C$5,MATCH(RIGHT(TRIM(Table14[[#This Row],[Description]]),4),Lookup!$B$2:$B$5,0),2),"") -> FWC | F5: AGG | G5: Outlook | H5: 221226 - FWC ER Mastercard EOY-2022 | I5: - | J5: =TEXT(Table14[[#This Row],[Date]],"YYMMDD")&" - Intl Transaction Fee - "&LEFT(RIGHT(Table14[[#This Row],[Description]],LEN(Table14[[#This Row],[Description]])-LEN("international transaction fee xx/xx ")),SEARCH("DEBIT",RIGHT(Table14[[#This Row],[Description]],LEN(Table14[[#This Row],[Description]])-LEN("international transaction fee xx/xx xx"))))&".pdf" -> 220103 - Intl Transaction Fee - OWL FOR THUNDERBI WIESBADEN.pdf
A6: 2022-01-19 | B6: MAILCHIMP *MISC 01/18 PURCHASE MAILCHIMP.COM GA DEBIT CARD *7411 | C6: -9.49 | D6: =D5+Table14[[#This Row],[Amount]] -> 612.55 | E6: =IFERROR(INDEX(Lookup!$B$2:$C$5,MATCH(RIGHT(TRIM(Table14[[#This Row],[Description]]),4),Lookup!$B$2:$B$5,0),2),"") -> LRC | F6: AGG | G6: Mailchimp | H6: 220310 - LRC ADS_BG ER MasterCard 04-2022 | I6: - | J6: 220118 - AGG - Mailchimp Essentials MC14760854.pdf
A7: 2022-01-20 | B7: MailChimp 01/20 PURCHASE Atlanta GA DEBIT CARD *7411 | C7: -47.69 | D7: =D6+Table14[[#This Row],[Amount]] -> 564.86 | E7: =IFERROR(INDEX(Lookup!$B$2:$C$5,MATCH(RIGHT(TRIM(Table14[[#This Row],[Description]]),4),Lookup!$B$2:$B$5,0),2),"") -> LRC | F7: Peregrine | G7: Mailchimp | H7: 220310 - LRC ADS_BG ER MasterCard Peregrine Billable 03-2022 | I7: 005-22 | J7: 220120 - Peregrine - Mailchimp Essentials MC14777938.pdf
A8: 2022-01-24 | B8: PEREGRINE AVIONI DES:QUICKBOOKS ID:375020979 INDN:AVIAGLOBAL GROUP, LLC CO ID:1722616653 PPD | C8: 1500 | D8: =D7+Table14[[#This Row],[Amount]] -> 2064.86 | E8: =IFERROR(INDEX(Lookup!$B$2:$C$5,MATCH(RIGHT(TRIM(Table14[[#This Row],[Description]]),4),Lookup!$B$2:$B$5,0),2),"") ->  | F8: Peregrine
A9: 2022-01-24 | B9: SOFTACULOUS 01/24 PURCHASE ABU DHABI DEBIT CARD *7429 | C9: -24 | D9: =D8+Table14[[#This Row],[Amount]] -> 2040.86 | E9: =IFERROR(INDEX(Lookup!$B$2:$C$5,MATCH(RIGHT(TRIM(Table14[[#This Row],[Description]]),4),Lookup!$B$2:$B$5,0),2),"") -> FWC | F9: Peregrine | G9: Security | H9: 221221 - FWC ER Peregrine Billable 1Q22 | I9: 020-22 | J9: 220124 - Softaculous Loginizer 783150.pdf
A10: 2022-01-24 | B10: ELEMENTOR 01/24 PURCHASE WILMINGTON DE DEBIT CARD *7429 | C10: -49 | D10: =D9+Table14[[#This Row],[Amount]] -> 1991.86 | E10: =IFERROR(INDEX(Lookup!$B$2:$C$5,MATCH(RIGHT(TRIM(Table14[[#This Row],[Description]]),4),Lookup!$B$2:$B$5,0),2),"") -> FWC | F10: Peregrine | G10: CMS Editor | H10: 221221 - FWC ER Peregrine Billable 1Q22 | I10: 020-22 | J10: 220124 - Elementor Pro.pdf
A11: 2022-01-24 | B11: INTERNATIONAL TRANSACTION FEE 01/24 SOFTACULOUS ABU DHABI DEBIT CARD *7429 | C11: -0.72 | D11: =D10+Table14[[#This Row],[Amount]] -> 1991.14 | E11: =IFERROR(INDEX(Lookup!$B$2:$C$5,MATCH(RIGHT(TRIM(Table14[[#This Row],[Description]]),4),Lookup!$B$2:$B$5,0),2),"") -> FWC | F11: Peregrine | G11: Fee | H11: 221221 - FWC ER Peregrine Billable 1Q22 | I11: 020-22 | J11: =TEXT(Table14[[#This Row],[Date]],"YYMMDD")&" - Intl Transaction Fee - "&LEFT(RIGHT(Table14[[#This Row],[Description]],LEN(Table14[[#This Row],[Description]])-LEN("international transaction fee xx/xx ")),SEARCH("DEBIT",RIGHT(Table14[[#This Row],[Description]],LEN(Table14[[#This Row],[Description]])-LEN("international transaction fee xx/xx xx"))))&".pdf" -> 220124 - Intl Transaction Fee - SOFTACULOUS ABU DHABI.pdf
A12: 2022-01-25 | B12: REALLY-SIMPLE-SSL 01/24 PURCHASE GRONINGEN DEBIT CARD *7429 | C12: -23.2 | D12: =D11+Table14[[#This Row],[Amount]] -> 1967.94 | E12: =IFERROR(INDEX(Lookup!$B$2:$C$5,MATCH(RIGHT(TRIM(Table14[[#This Row],[Description]]),4),Lookup!$B$2:$B$5,0),2),"") -> FWC | F12: Peregrine | G12: SSL Cert Manager | H12: 221221 - FWC ER Peregrine Billable 1Q22 | I12: 020-22 | J12: 220124 - Really Simple SSL 2022-1993.pdf
A13: 2022-01-25 | B13: COMPLIANZ-GDPR-PR 01/25 PURCHASE GRONINGEN DEBIT CARD *7429 | C13: -45 | D13: =D12+Table14[[#This Row],[Amount]] -> 1922.94 | E13: =IFERROR(INDEX(Lookup!$B$2:$C$5,MATCH(RIGHT(TRIM(Table14[[#This Row],[Description]]),4),Lookup!$B$2:$B$5,0),2),"") -> FWC | F13: Peregrine | G13: Privacy Compliance | H13: 221221 - FWC ER Peregrine Billable 1Q22 | I13: 020-22 | J13: 220125 - Complianz 2022-0745.pdf
A14: 2022-01-25 | B14: INTERNATIONAL TRANSACTION FEE 01/25 COMPLIANZ-GDPR-PR GRONINGEN DEBIT CARD *7429 | C14: -1.35 | D14: =D13+Table14[[#This Row],[Amount]] -> 1921.59 | E14: =IFERROR(INDEX(Lookup!$B$2:$C$5,MATCH(RIGHT(TRIM(Table14[[#This Row],[Description]]),4),Lookup!$B$2:$B$5,0),2),"") -> FWC | F14: Peregrine | G14: Fee | H14: 221221 - FWC ER Peregrine Billable 1Q22 | I14: 020-22 | J14: =TEXT(Table14[[#This Row],[Date]],"YYMMDD")&" - Intl Transaction Fee - "&LEFT(RIGHT(Table14[[#This Row],[Description]],LEN(Table14[[#This Row],[Description]])-LEN("international transaction fee xx/xx ")),SEARCH("DEBIT",RIGHT(Table14[[#This Row],[Description]],LEN(Table14[[#This Row],[Description]])-LEN("international transaction fee xx/xx xx"))))&".pdf" -> 220125 - Intl Transaction Fee - COMPLIANZ-GDPR-PR GRONINGEN.pdf
A15: 2022-01-25 | B15: INTERNATIONAL TRANSACTION FEE 01/24 REALLY-SIMPLE-SSL GRONINGEN DEBIT CARD *7429 | C15: -0.7 | D15: =D14+Table14[[#This Row],[Amount]] -> 1920.89 | E15: =IFERROR(INDEX(Lookup!$B$2:$C$5,MATCH(RIGHT(TRIM(Table14[[#This Row],[Description]]),4),Lookup!$B$2:$B$5,0),2),"") -> FWC | F15: Peregrine | G15: Fee | H15: 221221 - FWC ER Peregrine Billable 1Q22 | I15: 020-22 | J15: =TEXT(Table14[[#This Row],[Date]],"YYMMDD")&" - Intl Transaction Fee - "&LEFT(RIGHT(Table14[[#This Row],[Description]],LEN(Table14[[#This Row],[Description]])-LEN("international transaction fee xx/xx ")),SEARCH("DEBIT",RIGHT(Table14[[#This Row],[Description]],LEN(Table14[[#This Row],[Description]])-LEN("international transaction fee xx/xx xx"))))&".pdf" -> 220125 - Intl Transaction Fee - REALLY-SIMPLE-SSL GRONINGEN.pdf
A16: 2022-01-26 | B16: BLS*Single Card 01/25 PURCHASE 972547584908 DEBIT CARD *7411 | C16: -6.99 | D16: =D15+Table14[[#This Row],[Amount]] -> 1913.9 | E16: =IFERROR(INDEX(Lookup!$B$2:$C$5,MATCH(RIGHT(TRIM(Table14[[#This Row],[Description]]),4),Lookup!$B$2:$B$5,0),2),"") -> LRC | F16: AGG | H16: 220310 - LRC ADS_BG ER MasterCard 04-2022 | I16: - | J16: 220125 - Clear Coast Greetings Island 341592115.pdf
A17: 2022-01-26 | B17: INTERNATIONAL TRANSACTION FEE 01/25 BLS*Single Card 972547584908 DEBIT CARD *7411 | C17: -0.21 | D17: =D16+Table14[[#This Row],[Amount]] -> 1913.69 | E17: =IFERROR(INDEX(Lookup!$B$2:$C$5,MATCH(RIGHT(TRIM(Table14[[#This Row],[Description]]),4),Lookup!$B$2:$B$5,0),2),"") -> LRC | F17: AGG | H17: 220310 - LRC ADS_BG ER MasterCard 04-2022 | I17: - | J17: 220125 - Clear Coast Greetings Island 341592115.pdf
A18: 2022-02-01 | B18: Monthly Fee Business Adv Relationship | C18: -29.95 | D18: =D17+Table14[[#This Row],[Amount]] -> 1883.74 | E18: =IFERROR(INDEX(Lookup!$B$2:$C$5,MATCH(RIGHT(TRIM(Table14[[#This Row],[Description]]),4),Lookup!$B$2:$B$5,0),2),"") ->  | F18: AGG | I18: -
A19: 2022-02-07 | B19: INMOTIONHOSTING.C 02/06 PURCHASE 888-3214678 CA DEBIT CARD *7429 | C19: -37.18 | D19: =D18+Table14[[#This Row],[Amount]] -> 1846.56 | E19: =IFERROR(INDEX(Lookup!$B$2:$C$5,MATCH(RIGHT(TRIM(Table14[[#This Row],[Description]]),4),Lookup!$B$2:$B$5,0),2),"") -> FWC | F19: AGG | G19: Domain | H19: 221226 - FWC ER Mastercard EOY-2022 | I19: - | J19: 220220 - InMotion Hosting - IMH-314-144898-87.pdf
A20: 2022-02-14 | B20: JET NET 02/10 PURCHASE 315-797-4420 NY DEBIT CARD *7411 | C20: -850 | D20: =D19+Table14[[#This Row],[Amount]] -> 996.56 | E20: =IFERROR(INDEX(Lookup!$B$2:$C$5,MATCH(RIGHT(TRIM(Table14[[#This Row],[Description]]),4),Lookup!$B$2:$B$5,0),2),"") -> LRC | F20: Peregrine | H20: 220211 ‐ LRC ADS_BG ER MasterCard Peregrine Billable 02a‐2022 | I20: 003-22 | J20: Executed Custom Special Report Project Agreement AviaGlobal Group LLC[84].pdf
A21: 2022-02-18 | B21: PEREGRINE AVIONI DES:QUICKBOOKS ID:375020979 INDN:AVIAGLOBAL GROUP, LLC CO ID:1722616653 PPD | C21: 1500 | D21: =D20+Table14[[#This Row],[Amount]] -> 2496.56 | E21: =IFERROR(INDEX(Lookup!$B$2:$C$5,MATCH(RIGHT(TRIM(Table14[[#This Row],[Description]]),4),Lookup!$B$2:$B$5,0),2),"") ->  | F21: Peregrine
A22: 2022-02-22 | B22: MailChimp 02/20 PURCHASE Atlanta GA DEBIT CARD *7411 | C22: -59 | D22: =D21+Table14[[#This Row],[Amount]] -> 2437.56 | E22: =IFERROR(INDEX(Lookup!$B$2:$C$5,MATCH(RIGHT(TRIM(Table14[[#This Row],[Description]]),4),Lookup!$B$2:$B$5,0),2),"") -> LRC | F22: Peregrine | G22: Mailchimp | H22: 220310 - LRC ADS_BG ER MasterCard Peregrine Billable 03-2022 | I22: 005-22 | J22: 220220 - Peregrine - Mailchimp Essentials MC15026518.pdf
A23: 2022-02-22 | B23: MAILCHIMP *MISC 02/18 PURCHASE MAILCHIMP.COM GA DEBIT CARD *7411 | C23: -11.62 | D23: =D22+Table14[[#This Row],[Amount]] -> 2425.94 | E23: =IFERROR(INDEX(Lookup!$B$2:$C$5,MATCH(RIGHT(TRIM(Table14[[#This Row],[Description]]),4),Lookup!$B$2:$B$5,0),2),"") -> LRC | F23: AGG | G23: Mailchimp | H23: 220310 - LRC ADS_BG ER MasterCard 04-2022 | I23: - | J23: 220218 - AGG - Mailchimp Essentials MC15010226.pdf
A24: 2022-03-01 | B24: Monthly Fee Business Adv Relationship | C24: -29.95 | D24: =D23+Table14[[#This Row],[Amount]] -> 2395.99 | E24: =IFERROR(INDEX(Lookup!$B$2:$C$5,MATCH(RIGHT(TRIM(Table14[[#This Row],[Description]]),4),Lookup!$B$2:$B$5,0),2),"") ->  | F24: AGG | I24: -
A25: 2022-03-15 | B25: Amazon.com*1N91P5 03/14 PURCHASE Amzn.com/bill WA DEBIT CARD *7411 | C25: -66.66 | D25: =D24+Table14[[#This Row],[Amount]] -> 2329.33 | E25: =IFERROR(INDEX(Lookup!$B$2:$C$5,MATCH(RIGHT(TRIM(Table14[[#This Row],[Description]]),4),Lookup!$B$2:$B$5,0),2),"") -> LRC | F25: Peregrine | H25: 220310 - LRC ADS_BG ER MasterCard Peregrine Billable 03-2022 | I25: 006-22 | J25: Amazon.com - Order 111-7793024-7025007.pdf
A26: 2022-03-15 | B26: STAMPS.COM 03/14 PURCHASE 855-608-2677 CA DEBIT CARD *7411 | C26: -30.12 | D26: =D25+Table14[[#This Row],[Amount]] -> 2299.21 | E26: =IFERROR(INDEX(Lookup!$B$2:$C$5,MATCH(RIGHT(TRIM(Table14[[#This Row],[Description]]),4),Lookup!$B$2:$B$5,0),2),"") -> LRC | F26: Peregrine | G26: Stamps | H26: 220310 - LRC ADS_BG ER MasterCard Peregrine Billable 03-2022 | I26: 006-22 | J26: Stamps dot com st2385760.pdf
A27: 2022-03-15 | B27: STAMPS.COM 03/14 PURCHASE 855-608-2677 CA DEBIT CARD *7411 | C27: -19.19 | D27: =D26+Table14[[#This Row],[Amount]] -> 2280.02 | E27: =IFERROR(INDEX(Lookup!$B$2:$C$5,MATCH(RIGHT(TRIM(Table14[[#This Row],[Description]]),4),Lookup!$B$2:$B$5,0),2),"") -> LRC | F27: AGG | G27: Stamps | H27: 220322 ‐ LRC ADS_BG ER MasterCard 07‐2022 | I27: - | J27: Stamps dot com st2385037.pdf
A28: 2022-03-15 | B28: TRANSFER AVIAGLOBAL GROUP, LL:ADS-B Global LLC Confirmation# 1737069000 | C28: -74.1 | D28: =D27+Table14[[#This Row],[Amount]] -> 2205.92 | E28: =IFERROR(INDEX(Lookup!$B$2:$C$5,MATCH(RIGHT(TRIM(Table14[[#This Row],[Description]]),4),Lookup!$B$2:$B$5,0),2),"") -> 
A29: 2022-03-16 | B29: MONSTERINSIGHTS W 03/16 PURCHASE PALM BEACH GA FL DEBIT CARD *7429 | C29: -199 | D29: =D28+Table14[[#This Row],[Amount]] -> 2006.92 | E29: =IFERROR(INDEX(Lookup!$B$2:$C$5,MATCH(RIGHT(TRIM(Table14[[#This Row],[Description]]),4),Lookup!$B$2:$B$5,0),2),"") -> FWC | F29: Peregrine | G29: Web Traffic | H29: 221221 - FWC ER Peregrine Billable 1Q22 | I29: 020-22 | J29: 220316 - Monster Insights Invoice 543619.pdf
A30: 2022-03-16 | B30: SEMPER PLUGINS AI 03/16 PURCHASE PALM BEACH GA FL DEBIT CARD *7429 | C30: -99 | D30: =D29+Table14[[#This Row],[Amount]] -> 1907.92 | E30: =IFERROR(INDEX(Lookup!$B$2:$C$5,MATCH(RIGHT(TRIM(Table14[[#This Row],[Description]]),4),Lookup!$B$2:$B$5,0),2),"") -> FWC | F30: Peregrine | G30: SEO Plugin | H30: 221221 - FWC ER Peregrine Billable 1Q22 | I30: 020-22 | J30: 220315 - aioseo Invoice 80192.pdf
A31: 2022-03-16 | B31: External transfer fee - 3 Day - 03/15/2022 Confirmation: 379444042 | C31: -1 | D31: =D30+Table14[[#This Row],[Amount]] -> 1906.92 | E31: FWC | F31: AGG | H31: 221226 - FWC ER Mastercard EOY-2022 | I31: -
A32: 2022-03-17 | B32: PEREGRINE AVIONI DES:QUICKBOOKS ID:375020979 INDN:AVIAGLOBAL GROUP, LLC CO ID:1722616653 PPD | C32: 3850 | D32: =D31+Table14[[#This Row],[Amount]] -> 5756.92 | E32: =IFERROR(INDEX(Lookup!$B$2:$C$5,MATCH(RIGHT(TRIM(Table14[[#This Row],[Description]]),4),Lookup!$B$2:$B$5,0),2),"") ->  | F32: Peregrine
A33: 2022-03-18 | B33: USPS STAMPS ENDIC 03/17 PURCHASE 888-434-0055 DC DEBIT CARD *7411 | C33: -100 | D33: =D32+Table14[[#This Row],[Amount]] -> 5656.92 | E33: =IFERROR(INDEX(Lookup!$B$2:$C$5,MATCH(RIGHT(TRIM(Table14[[#This Row],[Description]]),4),Lookup!$B$2:$B$5,0),2),"") -> LRC | F33: Peregrine | G33: Stamps | H33: 220310 - LRC ADS_BG ER MasterCard Peregrine Billable 03-2022 | I33: 006-22 | J33: Stamps dot com Postage orders.pdf
A34: 2022-03-18 | B34: USPS STAMPS ENDIC 03/17 PURCHASE 888-434-0055 DC DEBIT CARD *7411 | C34: -50 | D34: =D33+Table14[[#This Row],[Amount]] -> 5606.92 | E34: =IFERROR(INDEX(Lookup!$B$2:$C$5,MATCH(RIGHT(TRIM(Table14[[#This Row],[Description]]),4),Lookup!$B$2:$B$5,0),2),"") -> LRC | F34: Peregrine | G34: Stamps | H34: 220310 - LRC ADS_BG ER MasterCard Peregrine Billable 03-2022 | I34: 006-22 | J34: Stamps dot com Postage orders.pdf
A35: 2022-03-18 | B35: AMZN Mktp US*1N5B 03/17 PURCHASE Amzn.com/bill WA DEBIT CARD *7411 | C35: -29.63 | D35: =D34+Table14[[#This Row],[Amount]] -> 5577.29 | E35: =IFERROR(INDEX(Lookup!$B$2:$C$5,MATCH(RIGHT(TRIM(Table14[[#This Row],[Description]]),4),Lookup!$B$2:$B$5,0),2),"") -> LRC | F35: Peregrine | H35: 220310 - LRC ADS_BG ER MasterCard Peregrine Billable 03-2022 | I35: 006-22 | J35: Amazon.com - Order 114-5434031-3824202.pdf
A36: 2022-03-21 | B36: MailChimp 03/20 PURCHASE Atlanta GA DEBIT CARD *7411 | C36: -59 | D36: =D35+Table14[[#This Row],[Amount]] -> 5518.29 | E36: =IFERROR(INDEX(Lookup!$B$2:$C$5,MATCH(RIGHT(TRIM(Table14[[#This Row],[Description]]),4),Lookup!$B$2:$B$5,0),2),"") -> LRC | F36: Peregrine | G36: Mailchimp | H36: 220310 - LRC ADS_BG ER MasterCard Peregrine Billable 03-2022 | I36: 006-22 | J36: 220320 - Peregrine - Mailchimp Essentials MC15268026.pdf
A37: 2022-03-21 | B37: MAILCHIMP *MISC 03/18 PURCHASE MAILCHIMP.COM GA DEBIT CARD *7411 | C37: -11.62 | D37: =D36+Table14[[#This Row],[Amount]] -> 5506.67 | E37: =IFERROR(INDEX(Lookup!$B$2:$C$5,MATCH(RIGHT(TRIM(Table14[[#This Row],[Description]]),4),Lookup!$B$2:$B$5,0),2),"") -> LRC | F37: AGG | G37: Mailchimp | H37: 220322 ‐ LRC ADS_BG ER MasterCard 07‐2022 | I37: - | J37: 220318 - AGG - Mailchimp Essentials MC15252178.pdf
A38: 2022-03-23 | B38: TRANSFER AVIAGLOBAL GROUP, LL:ADS-B Global LLC Confirmation# 0107351744 | C38: -96.55 | D38: =D37+Table14[[#This Row],[Amount]] -> 5410.12 | E38: =IFERROR(INDEX(Lookup!$B$2:$C$5,MATCH(RIGHT(TRIM(Table14[[#This Row],[Description]]),4),Lookup!$B$2:$B$5,0),2),"") -> 
A39: 2022-03-24 | B39: USPS STAMPS ENDIC 03/23 PURCHASE 888-434-0055 DC DEBIT CARD *7411 | C39: -25 | D39: =D38+Table14[[#This Row],[Amount]] -> 5385.12 | E39: =IFERROR(INDEX(Lookup!$B$2:$C$5,MATCH(RIGHT(TRIM(Table14[[#This Row],[Description]]),4),Lookup!$B$2:$B$5,0),2),"") -> LRC | F39: Peregrine | G39: Stamps | H39: 220310 - LRC ADS_BG ER MasterCard Peregrine Billable 03-2022 | I39: 006-22 | J39: Stamps dot com Postage orders.pdf
A40: 2022-03-24 | B40: External transfer fee - 3 Day - 03/23/2022 Confirmation: 380466874 | C40: -1 | D40: =D39+Table14[[#This Row],[Amount]] -> 5384.12 | E40: =IFERROR(INDEX(Lookup!$B$2:$C$5,MATCH(RIGHT(TRIM(Table14[[#This Row],[Description]]),4),Lookup!$B$2:$B$5,0),2),"") ->  | F40: AGG | I40: -
A41: 2022-03-29 | B41: MICHAEL L STUCK C 03/28 PURCHASE SCOTTSDALE AZ DEBIT CARD *0975 | C41: -575 | D41: =D40+Table14[[#This Row],[Amount]] -> 4809.12 | E41: =IFERROR(INDEX(Lookup!$B$2:$C$5,MATCH(RIGHT(TRIM(Table14[[#This Row],[Description]]),4),Lookup!$B$2:$B$5,0),2),"") -> HEA | F41: AGG | J41: HEA AGG ER 01-2022 DebitCardRecon
A42: 2022-03-31 | B42: NATIONAL BUS AVIA 03/31 PURCHASE WASHINGTON DC DEBIT CARD *7411 | C42: -750 | D42: =D41+Table14[[#This Row],[Amount]] -> 4059.12 | E42: =IFERROR(INDEX(Lookup!$B$2:$C$5,MATCH(RIGHT(TRIM(Table14[[#This Row],[Description]]),4),Lookup!$B$2:$B$5,0),2),"") -> LRC | F42: AGG | H42: 221227 - LRC ADS_BG ER MasterCard 18-2022 | I42: - | J42: 220331 - NBAA Dues 000419790.pdf
A43: 2022-04-01 | B43: Monthly Fee Business Adv Relationship | C43: -29.95 | D43: =D42+Table14[[#This Row],[Amount]] -> 4029.17 | E43: =IFERROR(INDEX(Lookup!$B$2:$C$5,MATCH(RIGHT(TRIM(Table14[[#This Row],[Description]]),4),Lookup!$B$2:$B$5,0),2),"") ->  | F43: AGG | I43: -
A44: 2022-04-08 | B44: EVERMAP COMPANY L 04/05 PURCHASE CORVALLIS OR DEBIT CARD *0975 | C44: -149 | D44: =D43+Table14[[#This Row],[Amount]] -> 3880.17 | E44: =IFERROR(INDEX(Lookup!$B$2:$C$5,MATCH(RIGHT(TRIM(Table14[[#This Row],[Description]]),4),Lookup!$B$2:$B$5,0),2),"") -> HEA | F44: AGG | J44: HEA AGG ER 01-2022 DebitCardRecon
A45: 2022-04-13 | B45: EVERMAP COMPANY L 04/05 PURCHASE CORVALLIS OR DEBIT CARD *7411 | C45: -149 | D45: =D44+Table14[[#This Row],[Amount]] -> 3731.17 | E45: =IFERROR(INDEX(Lookup!$B$2:$C$5,MATCH(RIGHT(TRIM(Table14[[#This Row],[Description]]),4),Lookup!$B$2:$B$5,0),2),"") -> LRC | F45: AGG | H45: 221227 - LRC ADS_BG ER MasterCard 18-2022 | I45: - | J45: 220405 - Evermap PDF Tool W-48699.pdf
A46: 2022-04-14 | B46: STAMPS.COM 04/14 PURCHASE 855-608-2677 CA DEBIT CARD *7411 | C46: -17.99 | D46: =D45+Table14[[#This Row],[Amount]] -> 3713.18 | E46: =IFERROR(INDEX(Lookup!$B$2:$C$5,MATCH(RIGHT(TRIM(Table14[[#This Row],[Description]]),4),Lookup!$B$2:$B$5,0),2),"") -> LRC | F46: AGG | G46: Stamps | H46: 220624 - LRC ADS_BG ER Mastercard 10-2022 | I46: - | J46: 220416 - Stamps dot com.pdf
A47: 2022-04-19 | B47: MAILCHIMP *MISC 04/18 PURCHASE MAILCHIMP.COM GA DEBIT CARD *7411 | C47: -11.62 | D47: =D46+Table14[[#This Row],[Amount]] -> 3701.56 | E47: =IFERROR(INDEX(Lookup!$B$2:$C$5,MATCH(RIGHT(TRIM(Table14[[#This Row],[Description]]),4),Lookup!$B$2:$B$5,0),2),"") -> LRC | F47: AGG | G47: Mailchimp | H47: 220624 - LRC ADS_BG ER Mastercard 10-2022 | I47: - | J47: 220418 - AGG - Mailchimp Essentials MC15490450.pdf
A48: 2022-04-20 | B48: PEREGRINE AVIONI DES:QUICKBOOKS ID:375020979 INDN:AVIAGLOBAL GROUP, LLC CO ID:1722616653 PPD | C48: 3557.1 | D48: =D47+Table14[[#This Row],[Amount]] -> 7258.66 | E48: =IFERROR(INDEX(Lookup!$B$2:$C$5,MATCH(RIGHT(TRIM(Table14[[#This Row],[Description]]),4),Lookup!$B$2:$B$5,0),2),"") ->  | F48: Peregrine
A49: 2022-04-20 | B49: MailChimp 04/20 PURCHASE Atlanta GA DEBIT CARD *7411 | C49: -59 | D49: =D48+Table14[[#This Row],[Amount]] -> 7199.66 | E49: =IFERROR(INDEX(Lookup!$B$2:$C$5,MATCH(RIGHT(TRIM(Table14[[#This Row],[Description]]),4),Lookup!$B$2:$B$5,0),2),"") -> LRC | F49: Peregrine | G49: Mailchimp | H49: 220624 - LRC ADS_BG ER Peregrine Billable 09-2022 | I49: 011-22 | J49: 220420 - Peregrine - Mailchimp Essentials MC15506606.pdf
A50: 2022-04-22 | B50: TRANSFER AVIAGLOBAL GROUP, LL:ADS-B Global LLC Confirmation# 1763915441 | C50: -2000 | D50: =D49+Table14[[#This Row],[Amount]] -> 5199.66 | E50: =IFERROR(INDEX(Lookup!$B$2:$C$5,MATCH(RIGHT(TRIM(Table14[[#This Row],[Description]]),4),Lookup!$B$2:$B$5,0),2),"") -> 
A51: 2022-04-22 | B51: TRANSFER AVIAGLOBAL GROUP, LL:Forrest Colliver Confirmation# 0663925416 | C51: -2000 | D51: =D50+Table14[[#This Row],[Amount]] -> 3199.66 | E51: =IFERROR(INDEX(Lookup!$B$2:$C$5,MATCH(RIGHT(TRIM(Table14[[#This Row],[Description]]),4),Lookup!$B$2:$B$5,0),2),"") -> 
A52: 2022-04-22 | B52: Online Banking Transfer Conf# iuvu5ty24; AERO BUSINESS DEVELOPEMENT LLC | C52: -2000 | D52: =D51+Table14[[#This Row],[Amount]] -> 1199.66 | E52: =IFERROR(INDEX(Lookup!$B$2:$C$5,MATCH(RIGHT(TRIM(Table14[[#This Row],[Description]]),4),Lookup!$B$2:$B$5,0),2),"") -> 
A53: 2022-04-25 | B53: External transfer fee - 3 Day - 04/22/2022 Confirmation: 384618918 | C53: -1 | D53: =D52+Table14[[#This Row],[Amount]] -> 1198.66 | E53: =IFERROR(INDEX(Lookup!$B$2:$C$5,MATCH(RIGHT(TRIM(Table14[[#This Row],[Description]]),4),Lookup!$B$2:$B$5,0),2),"") ->  | F53: AGG | I53: -
A54: 2022-04-25 | B54: External transfer fee - 3 Day - 04/22/2022 Confirmation: 384619226 | C54: -1 | D54: =D53+Table14[[#This Row],[Amount]] -> 1197.66 | E54: =IFERROR(INDEX(Lookup!$B$2:$C$5,MATCH(RIGHT(TRIM(Table14[[#This Row],[Description]]),4),Lookup!$B$2:$B$5,0),2),"") ->  | F54: AGG | I54: -
A55: 2022-05-02 | B55: Monthly Fee Business Adv Relationship | C55: -29.95 | D55: =D54+Table14[[#This Row],[Amount]] -> 1167.71 | E55: =IFERROR(INDEX(Lookup!$B$2:$C$5,MATCH(RIGHT(TRIM(Table14[[#This Row],[Description]]),4),Lookup!$B$2:$B$5,0),2),"") ->  | F55: AGG | I55: -
A56: 2022-05-16 | B56: STAMPS.COM 05/14 PURCHASE 855-608-2677 CA DEBIT CARD *7411 | C56: -17.99 | D56: =D55+Table14[[#This Row],[Amount]] -> 1149.72 | E56: =IFERROR(INDEX(Lookup!$B$2:$C$5,MATCH(RIGHT(TRIM(Table14[[#This Row],[Description]]),4),Lookup!$B$2:$B$5,0),2),"") -> LRC | F56: AGG | G56: Stamps | H56: 220624 - LRC ADS_BG ER Mastercard 10-2022 | I56: - | J56: 220516 - Stamps dot com.pdf
A57: 2022-05-19 | B57: MAILCHIMP *MISC 05/18 PURCHASE MAILCHIMP.COM GA DEBIT CARD *7411 | C57: -11.62 | D57: =D56+Table14[[#This Row],[Amount]] -> 1138.1 | E57: =IFERROR(INDEX(Lookup!$B$2:$C$5,MATCH(RIGHT(TRIM(Table14[[#This Row],[Description]]),4),Lookup!$B$2:$B$5,0),2),"") -> LRC | F57: AGG | G57: Mailchimp | H57: 220624 - LRC ADS_BG ER Mastercard 10-2022 | I57: - | J57: 220518 - AGG - Mailchimp Essentials MC15724938.pdf
A58: 2022-05-20 | B58: MailChimp 05/20 PURCHASE Atlanta GA DEBIT CARD *7411 | C58: -59 | D58: =D57+Table14[[#This Row],[Amount]] -> 1079.1 | E58: =IFERROR(INDEX(Lookup!$B$2:$C$5,MATCH(RIGHT(TRIM(Table14[[#This Row],[Description]]),4),Lookup!$B$2:$B$5,0),2),"") -> LRC | F58: Peregrine | G58: Mailchimp | H58: 220624 - LRC ADS_BG ER Peregrine Billable 09-2022 | I58: 011-22 | J58: 220520 - Peregrine - Mailchimp Essentials MC15741014.pdf
A59: 2022-06-01 | B59: Monthly Fee Business Adv Relationship | C59: -29.95 | D59: =D58+Table14[[#This Row],[Amount]] -> 1049.15 | E59: =IFERROR(INDEX(Lookup!$B$2:$C$5,MATCH(RIGHT(TRIM(Table14[[#This Row],[Description]]),4),Lookup!$B$2:$B$5,0),2),"") ->  | F59: AGG | I59: -
A60: 2022-06-06 | B60: DMARCIAN* DMARCIA 06/04 PURCHASE BREVARD NC DEBIT CARD *7429 | C60: -239.88 | D60: =D59+Table14[[#This Row],[Amount]] -> 809.27 | E60: =IFERROR(INDEX(Lookup!$B$2:$C$5,MATCH(RIGHT(TRIM(Table14[[#This Row],[Description]]),4),Lookup!$B$2:$B$5,0),2),"") -> FWC | F60: AGG | H60: 221201 - FWC ER Mastercard Dec-2022 | I60: - | J60: AGG - DMARCian invoice_50733.pdf
A61: 2022-06-08 | B61: DREAMSTIME.COM 06/07 PURCHASE BRENTWOOD TN DEBIT CARD *7411 | C61: -16.99 | D61: =D60+Table14[[#This Row],[Amount]] -> 792.28 | E61: =IFERROR(INDEX(Lookup!$B$2:$C$5,MATCH(RIGHT(TRIM(Table14[[#This Row],[Description]]),4),Lookup!$B$2:$B$5,0),2),"") -> LRC | F61: Peregrine | H61: 220624 - LRC ADS_BG ER Peregrine Billable 09-2022 | I61: 011-22 | J61: 220607 - Dreamtime LLC 23829472.pdf
A62: 2022-06-08 | B62: DREAMSTIME.COM 06/07 PURCHASE BRENTWOOD TN DEBIT CARD *7411 | C62: -1 | D62: =D61+Table14[[#This Row],[Amount]] -> 791.28 | E62: =IFERROR(INDEX(Lookup!$B$2:$C$5,MATCH(RIGHT(TRIM(Table14[[#This Row],[Description]]),4),Lookup!$B$2:$B$5,0),2),"") -> LRC | F62: Peregrine | H62: 220624 - LRC ADS_BG ER Peregrine Billable 09-2022 | I62: 011-22 | J62: 220607 - Dreamtime LLC 23829472.pdf
A63: 2022-06-14 | B63: STAMPS.COM 06/14 PURCHASE 855-608-2677 CA DEBIT CARD *7411 | C63: -17.99 | D63: =D62+Table14[[#This Row],[Amount]] -> 773.29 | E63: =IFERROR(INDEX(Lookup!$B$2:$C$5,MATCH(RIGHT(TRIM(Table14[[#This Row],[Description]]),4),Lookup!$B$2:$B$5,0),2),"") -> LRC | F63: AGG | G63: Stamps | H63: 220624 - LRC ADS_BG ER Mastercard 10-2022 | I63: - | J63: 220616 - Stamps dot com.pdf
A64: 2022-06-21 | B64: MailChimp 06/20 PURCHASE Atlanta GA DEBIT CARD *7411 | C64: -59 | D64: =D63+Table14[[#This Row],[Amount]] -> 714.29 | E64: =IFERROR(INDEX(Lookup!$B$2:$C$5,MATCH(RIGHT(TRIM(Table14[[#This Row],[Description]]),4),Lookup!$B$2:$B$5,0),2),"") -> LRC | F64: Peregrine | G64: Mailchimp | H64: 220624 - LRC ADS_BG ER Peregrine Billable 09-2022 | I64: 011-22 | J64: 220620 - Peregrine - Mailchimp Essentials MC15971334.pdf
A65: 2022-06-21 | B65: MAILCHIMP *MISC 06/18 PURCHASE MAILCHIMP.COM GA DEBIT CARD *7411 | C65: -11.62 | D65: =D64+Table14[[#This Row],[Amount]] -> 702.67 | E65: =IFERROR(INDEX(Lookup!$B$2:$C$5,MATCH(RIGHT(TRIM(Table14[[#This Row],[Description]]),4),Lookup!$B$2:$B$5,0),2),"") -> LRC | F65: AGG | G65: Mailchimp | H65: 220624 - LRC ADS_BG ER Mastercard 10-2022 | I65: - | J65: 220618 - AGG - Mailchimp Essentials MC15956138.pdf
A66: 2022-06-21 | B66: ELEMENTOR 06/20 PURCHASE WILMINGTON DE DEBIT CARD *7429 | C66: -49 | D66: =D65+Table14[[#This Row],[Amount]] -> 653.67 | E66: =IFERROR(INDEX(Lookup!$B$2:$C$5,MATCH(RIGHT(TRIM(Table14[[#This Row],[Description]]),4),Lookup!$B$2:$B$5,0),2),"") -> FWC | F66: AGG | H66: 221201 - FWC ER Mastercard Dec-2022 | I66: - | J66: 220124 - Elementor Receipt 11416195.pdf
A67: 2022-06-21 | B67: REALLY-SIMPLE-SSL 06/20 PURCHASE GRONINGEN DEBIT CARD *7429 | C67: -23.2 | D67: =D66+Table14[[#This Row],[Amount]] -> 630.47 | E67: =IFERROR(INDEX(Lookup!$B$2:$C$5,MATCH(RIGHT(TRIM(Table14[[#This Row],[Description]]),4),Lookup!$B$2:$B$5,0),2),"") -> FWC | F67: AGG | H67: 221201 - FWC ER Mastercard Dec-2022 | I67: - | J67: AGG - ReallySimple SSL Receipt 2022-13884.pdf
A68: 2022-06-21 | B68: COMPLIANZ-GDPR-PR 06/20 PURCHASE GRONINGEN DEBIT CARD *7429 | C68: -45 | D68: =D67+Table14[[#This Row],[Amount]] -> 585.47 | E68: =IFERROR(INDEX(Lookup!$B$2:$C$5,MATCH(RIGHT(TRIM(Table14[[#This Row],[Description]]),4),Lookup!$B$2:$B$5,0),2),"") -> FWC | F68: AGG | H68: 221201 - FWC ER Mastercard Dec-2022 | I68: - | J68: 220125 - Complianz Invoice 2022-0745.pdf
A69: 2022-06-21 | B69: INTERNATIONAL TRANSACTION FEE 06/20 COMPLIANZ-GDPR-PR GRONINGEN DEBIT CARD *7429 | C69: -1.35 | D69: =D68+Table14[[#This Row],[Amount]] -> 584.12 | E69: =IFERROR(INDEX(Lookup!$B$2:$C$5,MATCH(RIGHT(TRIM(Table14[[#This Row],[Description]]),4),Lookup!$B$2:$B$5,0),2),"") -> FWC | F69: AGG | H69: 221201 - FWC ER Mastercard Dec-2022 | I69: - | J69: =TEXT(Table14[[#This Row],[Date]],"YYMMDD")&" - Intl Transaction Fee - "&LEFT(RIGHT(Table14[[#This Row],[Description]],LEN(Table14[[#This Row],[Description]])-LEN("international transaction fee xx/xx ")),SEARCH("DEBIT",RIGHT(Table14[[#This Row],[Description]],LEN(Table14[[#This Row],[Description]])-LEN("international transaction fee xx/xx xx"))))&".pdf" -> 220621 - Intl Transaction Fee - COMPLIANZ-GDPR-PR GRONINGEN.pdf
A70: 2022-06-21 | B70: INTERNATIONAL TRANSACTION FEE 06/20 REALLY-SIMPLE-SSL GRONINGEN DEBIT CARD *7429 | C70: -0.7 | D70: =D69+Table14[[#This Row],[Amount]] -> 583.42 | E70: =IFERROR(INDEX(Lookup!$B$2:$C$5,MATCH(RIGHT(TRIM(Table14[[#This Row],[Description]]),4),Lookup!$B$2:$B$5,0),2),"") -> FWC | F70: AGG | H70: 221201 - FWC ER Mastercard Dec-2022 | I70: - | J70: =TEXT(Table14[[#This Row],[Date]],"YYMMDD")&" - Intl Transaction Fee - "&LEFT(RIGHT(Table14[[#This Row],[Description]],LEN(Table14[[#This Row],[Description]])-LEN("international transaction fee xx/xx ")),SEARCH("DEBIT",RIGHT(Table14[[#This Row],[Description]],LEN(Table14[[#This Row],[Description]])-LEN("international transaction fee xx/xx xx"))))&".pdf" -> 220621 - Intl Transaction Fee - REALLY-SIMPLE-SSL GRONINGEN.pdf
A71: 2022-07-01 | B71: Monthly Fee Business Adv Relationship | C71: -29.95 | D71: =D70+Table14[[#This Row],[Amount]] -> 553.47 | E71: =IFERROR(INDEX(Lookup!$B$2:$C$5,MATCH(RIGHT(TRIM(Table14[[#This Row],[Description]]),4),Lookup!$B$2:$B$5,0),2),"") ->  | F71: AGG | I71: -
A72: 2022-07-08 | B72: PEREGRINE AVIONI DES:QUICKBOOKS ID:375020979 INDN:AVIAGLOBAL GROUP, LLC CO ID:1722616653 PPD | C72: 3000 | D72: =D71+Table14[[#This Row],[Amount]] -> 3553.47 | E72: =IFERROR(INDEX(Lookup!$B$2:$C$5,MATCH(RIGHT(TRIM(Table14[[#This Row],[Description]]),4),Lookup!$B$2:$B$5,0),2),"") ->  | F72: Peregrine
A73: 2022-07-14 | B73: STAMPS.COM 07/14 PURCHASE 855-608-2677 CA DEBIT CARD *7411 | C73: -17.99 | D73: =D72+Table14[[#This Row],[Amount]] -> 3535.48 | E73: =IFERROR(INDEX(Lookup!$B$2:$C$5,MATCH(RIGHT(TRIM(Table14[[#This Row],[Description]]),4),Lookup!$B$2:$B$5,0),2),"") -> LRC | F73: AGG | G73: Stamps | H73: 221020 - LRC ADS_BG ER Mastercard 12-2022 | I73: - | J73: 220714 - Stamps dot com.pdf
A74: 2022-07-19 | B74: MAILCHIMP *MISC 07/18 PURCHASE MAILCHIMP.COM GA DEBIT CARD *7411 | C74: -11.62 | D74: =D73+Table14[[#This Row],[Amount]] -> 3523.86 | E74: =IFERROR(INDEX(Lookup!$B$2:$C$5,MATCH(RIGHT(TRIM(Table14[[#This Row],[Description]]),4),Lookup!$B$2:$B$5,0),2),"") -> LRC | F74: AGG | G74: Mailchimp | H74: 221020 - LRC ADS_BG ER Mastercard 12-2022 | I74: - | J74: 220719 - AGG - Mailchimp Essentials MC16182470.pdf
A75: 2022-07-20 | B75: MailChimp 07/20 PURCHASE Atlanta GA DEBIT CARD *7411 | C75: -59 | D75: =D74+Table14[[#This Row],[Amount]] -> 3464.86 | E75: =IFERROR(INDEX(Lookup!$B$2:$C$5,MATCH(RIGHT(TRIM(Table14[[#This Row],[Description]]),4),Lookup!$B$2:$B$5,0),2),"") -> LRC | F75: Peregrine | G75: Mailchimp | H75: 221020 - LRC ADS_BG ER Peregrine Billable 13-2022 | I75: 015-22 | J75: 220720 - Peregrine - Mailchimp Essentials MC16197922.pdf
A76: 2022-08-01 | B76: SAE INTERNATIONAL 07/30 PURCHASE 7247764841 PA DEBIT CARD *7411 | C76: -120 | D76: =D75+Table14[[#This Row],[Amount]] -> 3344.86 | E76: =IFERROR(INDEX(Lookup!$B$2:$C$5,MATCH(RIGHT(TRIM(Table14[[#This Row],[Description]]),4),Lookup!$B$2:$B$5,0),2),"") -> LRC | F76: AGG | H76: 221020 - LRC ADS_BG ER Mastercard 12-2022 | I76: - | J76: 220701 - SAE Auto Renewal.pdf
A77: 2022-08-01 | B77: Monthly Fee Business Adv Relationship | C77: -29.95 | D77: =D76+Table14[[#This Row],[Amount]] -> 3314.91 | E77: =IFERROR(INDEX(Lookup!$B$2:$C$5,MATCH(RIGHT(TRIM(Table14[[#This Row],[Description]]),4),Lookup!$B$2:$B$5,0),2),"") ->  | F77: AGG | I77: -
A78: 2022-08-08 | B78: PEREGRINE AVIONI DES:QUICKBOOKS ID:375020979 INDN:AVIAGLOBAL GROUP, LLC CO ID:1722616653 PPD | C78: 3000 | D78: =D77+Table14[[#This Row],[Amount]] -> 6314.91 | E78: =IFERROR(INDEX(Lookup!$B$2:$C$5,MATCH(RIGHT(TRIM(Table14[[#This Row],[Description]]),4),Lookup!$B$2:$B$5,0),2),"") ->  | F78: Peregrine
A79: 2022-08-15 | B79: STAMPS.COM 08/14 PURCHASE 855-608-2677 CA DEBIT CARD *7411 | C79: -17.99 | D79: =D78+Table14[[#This Row],[Amount]] -> 6296.92 | E79: =IFERROR(INDEX(Lookup!$B$2:$C$5,MATCH(RIGHT(TRIM(Table14[[#This Row],[Description]]),4),Lookup!$B$2:$B$5,0),2),"") -> LRC | F79: AGG | G79: Stamps | H79: 221020 - LRC ADS_BG ER Mastercard 12-2022 | I79: - | J79: 220815 - Stamps dot com.pdf
A80: 2022-08-19 | B80: MAILCHIMP *MISC 08/18 PURCHASE MAILCHIMP.COM GA DEBIT CARD *7411 | C80: -11.62 | D80: =D79+Table14[[#This Row],[Amount]] -> 6285.3 | E80: =IFERROR(INDEX(Lookup!$B$2:$C$5,MATCH(RIGHT(TRIM(Table14[[#This Row],[Description]]),4),Lookup!$B$2:$B$5,0),2),"") -> LRC | F80: AGG | G80: Mailchimp | H80: 221020 - LRC ADS_BG ER Mastercard 12-2022 | I80: - | J80: 220818 - AGG - Mailchimp Essentials MC16405518.pdf
A81: 2022-08-22 | B81: MailChimp 08/20 PURCHASE Atlanta GA DEBIT CARD *7411 | C81: -59 | D81: =D80+Table14[[#This Row],[Amount]] -> 6226.3 | E81: =IFERROR(INDEX(Lookup!$B$2:$C$5,MATCH(RIGHT(TRIM(Table14[[#This Row],[Description]]),4),Lookup!$B$2:$B$5,0),2),"") -> LRC | F81: Peregrine | G81: Mailchimp | H81: 221020 - LRC ADS_BG ER Peregrine Billable 13-2022 | I81: 015-22 | J81: 220820 - Peregrine - Mailchimp Essentials MC16420842.pdf
A82: 2022-08-31 | B82: PEREGRINE AVIONI DES:QUICKBOOKS ID:375020979 INDN:AVIAGLOBAL GROUP, LLC CO ID:1722616653 PPD | C82: 3194.99 | D82: =D81+Table14[[#This Row],[Amount]] -> 9421.29 | E82: =IFERROR(INDEX(Lookup!$B$2:$C$5,MATCH(RIGHT(TRIM(Table14[[#This Row],[Description]]),4),Lookup!$B$2:$B$5,0),2),"") ->  | F82: Peregrine
A83: 2022-09-01 | B83: HELICOPTER ASSOCI 08/31 PURCHASE 7036834646 VA DEBIT CARD *7429 | C83: -325 | D83: =D82+Table14[[#This Row],[Amount]] -> 9096.29 | E83: =IFERROR(INDEX(Lookup!$B$2:$C$5,MATCH(RIGHT(TRIM(Table14[[#This Row],[Description]]),4),Lookup!$B$2:$B$5,0),2),"") -> FWC | F83: AGG | H83: 221201 - FWC ER Mastercard Dec-2022 | I83: - | J83: AGG - HAI Receipt- 145241.pdf
A84: 2022-09-01 | B84: Monthly Fee Business Adv Relationship | C84: -29.95 | D84: =D83+Table14[[#This Row],[Amount]] -> 9066.34 | E84: =IFERROR(INDEX(Lookup!$B$2:$C$5,MATCH(RIGHT(TRIM(Table14[[#This Row],[Description]]),4),Lookup!$B$2:$B$5,0),2),"") ->  | F84: AGG | I84: -
A85: 2022-09-07 | B85: TRANSFER AVIAGLOBAL GROUP, LL:ADS-B Global LLC Confirmation# 0156760934 | C85: -2700 | D85: =D84+Table14[[#This Row],[Amount]] -> 6366.34 | E85: =IFERROR(INDEX(Lookup!$B$2:$C$5,MATCH(RIGHT(TRIM(Table14[[#This Row],[Description]]),4),Lookup!$B$2:$B$5,0),2),"") -> 
A86: 2022-09-07 | B86: TRANSFER AVIAGLOBAL GROUP, LL:Forrest Colliver Confirmation# 1556772007 | C86: -2700 | D86: =D85+Table14[[#This Row],[Amount]] -> 3666.34 | E86: =IFERROR(INDEX(Lookup!$B$2:$C$5,MATCH(RIGHT(TRIM(Table14[[#This Row],[Description]]),4),Lookup!$B$2:$B$5,0),2),"") -> 
A87: 2022-09-07 | B87: Online Banking Transfer Conf# itu1b5i02; AERO BUSINESS DEVELOPEMENT LLC | C87: -2700 | D87: =D86+Table14[[#This Row],[Amount]] -> 966.34 | E87: =IFERROR(INDEX(Lookup!$B$2:$C$5,MATCH(RIGHT(TRIM(Table14[[#This Row],[Description]]),4),Lookup!$B$2:$B$5,0),2),"") -> 
A88: 2022-09-08 | B88: External transfer fee - 3 Day - 09/07/2022 Confirmation: 403675046 | C88: -1 | D88: =D87+Table14[[#This Row],[Amount]] -> 965.34 | E88: =IFERROR(INDEX(Lookup!$B$2:$C$5,MATCH(RIGHT(TRIM(Table14[[#This Row],[Description]]),4),Lookup!$B$2:$B$5,0),2),"") ->  | F88: AGG | I88: -
A89: 2022-09-08 | B89: External transfer fee - 3 Day - 09/07/2022 Confirmation: 403675426 | C89: -1 | D89: =D88+Table14[[#This Row],[Amount]] -> 964.34 | E89: =IFERROR(INDEX(Lookup!$B$2:$C$5,MATCH(RIGHT(TRIM(Table14[[#This Row],[Description]]),4),Lookup!$B$2:$B$5,0),2),"") ->  | F89: AGG | I89: -
A90: 2022-09-14 | B90: PEREGRINE AVIONI DES:QUICKBOOKS ID:375020979 INDN:AVIAGLOBAL GROUP, LLC CO ID:1722616653 PPD | C90: 3000 | D90: =D89+Table14[[#This Row],[Amount]] -> 3964.34 | E90: =IFERROR(INDEX(Lookup!$B$2:$C$5,MATCH(RIGHT(TRIM(Table14[[#This Row],[Description]]),4),Lookup!$B$2:$B$5,0),2),"") ->  | F90: Peregrine
A91: 2022-09-14 | B91: STAMPS.COM 09/14 PURCHASE 855-608-2677 CA DEBIT CARD *7411 | C91: -17.99 | D91: =D90+Table14[[#This Row],[Amount]] -> 3946.35 | E91: =IFERROR(INDEX(Lookup!$B$2:$C$5,MATCH(RIGHT(TRIM(Table14[[#This Row],[Description]]),4),Lookup!$B$2:$B$5,0),2),"") -> LRC | F91: AGG | G91: Stamps | H91: 221020 - LRC ADS_BG ER Mastercard 12-2022 | I91: - | J91: 220914 - Stamps dot com.pdf
A92: 2022-09-19 | B92: MAILCHIMP *MISC 09/18 PURCHASE MAILCHIMP.COM GA DEBIT CARD *7411 | C92: -11.62 | D92: =D91+Table14[[#This Row],[Amount]] -> 3934.73 | E92: =IFERROR(INDEX(Lookup!$B$2:$C$5,MATCH(RIGHT(TRIM(Table14[[#This Row],[Description]]),4),Lookup!$B$2:$B$5,0),2),"") -> LRC | F92: AGG | G92: Mailchimp | H92: 221020 - LRC ADS_BG ER Mastercard 12-2022 | I92: - | J92: 220918 - AGG - Mailchimp Essentials MC16627250.pdf
A93: 2022-09-20 | B93: MailChimp 09/20 PURCHASE Atlanta GA DEBIT CARD *7411 | C93: -59 | D93: =D92+Table14[[#This Row],[Amount]] -> 3875.73 | E93: =IFERROR(INDEX(Lookup!$B$2:$C$5,MATCH(RIGHT(TRIM(Table14[[#This Row],[Description]]),4),Lookup!$B$2:$B$5,0),2),"") -> LRC | F93: Peregrine | G93: Mailchimp | H93: 221020 - LRC ADS_BG ER Peregrine Billable 13-2022 | I93: 015-22 | J93: 220920 - Peregrine - Mailchimp Essentials MC16642305.pdf
A94: 2022-10-03 | B94: Monthly Fee Business Adv Relationship | C94: -29.95 | D94: =D93+Table14[[#This Row],[Amount]] -> 3845.78 | E94: =IFERROR(INDEX(Lookup!$B$2:$C$5,MATCH(RIGHT(TRIM(Table14[[#This Row],[Description]]),4),Lookup!$B$2:$B$5,0),2),"") ->  | F94: AGG | I94: -
A95: 2022-10-06 | B95: DOWNLOAD-MONITOR. 10/06 PURCHASE BUCURESTI DEBIT CARD *7429 | C95: -159 | D95: =D94+Table14[[#This Row],[Amount]] -> 3686.78 | E95: =IFERROR(INDEX(Lookup!$B$2:$C$5,MATCH(RIGHT(TRIM(Table14[[#This Row],[Description]]),4),Lookup!$B$2:$B$5,0),2),"") -> FWC | F95: Peregrine | H95: 221201 - FWC ER Peregrine Billable EOY-2022 | I95: 018-22 | J95: Peregrine - Download Monitor Invoice-3198.pdf
A96: 2022-10-06 | B96: INTERNATIONAL TRANSACTION FEE 10/06 DOWNLOAD-MONITOR. BUCURESTI DEBIT CARD *7429 | C96: -4.77 | D96: =D95+Table14[[#This Row],[Amount]] -> 3682.01 | E96: =IFERROR(INDEX(Lookup!$B$2:$C$5,MATCH(RIGHT(TRIM(Table14[[#This Row],[Description]]),4),Lookup!$B$2:$B$5,0),2),"") -> FWC | F96: Peregrine | H96: 221201 - FWC ER Peregrine Billable EOY-2022 | I96: 018-22 | J96: 221006 - INTERNATIONAL TRANSACTION FEE DOWNLOAD-MONITOR
A97: 2022-10-17 | B97: STAMPS.COM 10/14 PURCHASE 855-608-2677 CA DEBIT CARD *7411 | C97: -17.99 | D97: =D96+Table14[[#This Row],[Amount]] -> 3664.02 | E97: =IFERROR(INDEX(Lookup!$B$2:$C$5,MATCH(RIGHT(TRIM(Table14[[#This Row],[Description]]),4),Lookup!$B$2:$B$5,0),2),"") -> LRC | F97: AGG | G97: Stamps | H97: 221020 - LRC ADS_BG ER Mastercard 12-2022 | I97: - | J97: 221017 - Stamps dot com.pdf
A98: 2022-10-19 | B98: MAILCHIMP *MISC 10/18 PURCHASE MAILCHIMP.COM GA DEBIT CARD *7411 | C98: -11.62 | D98: =D97+Table14[[#This Row],[Amount]] -> 3652.4 | E98: =IFERROR(INDEX(Lookup!$B$2:$C$5,MATCH(RIGHT(TRIM(Table14[[#This Row],[Description]]),4),Lookup!$B$2:$B$5,0),2),"") -> LRC | F98: AGG | G98: Mailchimp | H98: 221020 - LRC ADS_BG ER Mastercard 12-2022 | I98: - | J98: 221018 - AGG - Mailchimp Essentials MC16858121.pdf
A99: 2022-10-20 | B99: MailChimp 10/20 PURCHASE Atlanta GA DEBIT CARD *7411 | C99: -59 | D99: =D98+Table14[[#This Row],[Amount]] -> 3593.4 | E99: =IFERROR(INDEX(Lookup!$B$2:$C$5,MATCH(RIGHT(TRIM(Table14[[#This Row],[Description]]),4),Lookup!$B$2:$B$5,0),2),"") -> LRC | F99: Peregrine | G99: Mailchimp | H99: 221020 - LRC ADS_BG ER Peregrine Billable 13-2022 | I99: 015-22 | J99: 221020 - Peregrine - Mailchimp Essentials MC16642305.pdf
A100: 2022-10-31 | B100: NATIONAL BUS AVIA 10/28 PURCHASE WASHINGTON DC DEBIT CARD *7411 | C100: -52.5 | D100: =D99+Table14[[#This Row],[Amount]] -> 3540.9 | E100: =IFERROR(INDEX(Lookup!$B$2:$C$5,MATCH(RIGHT(TRIM(Table14[[#This Row],[Description]]),4),Lookup!$B$2:$B$5,0),2),"") -> LRC | F100: AGG | H100: 221201 - LRC ADS_BG ER Mastercard 15-2022 | I100: - | J100: 221028 - NBAA Affilliated Prof Membership 000430626.pdf
A101: 2022-11-01 | B101: Monthly Fee Business Adv Relationship | C101: -29.95 | D101: =D100+Table14[[#This Row],[Amount]] -> 3510.95 | E101: =IFERROR(INDEX(Lookup!$B$2:$C$5,MATCH(RIGHT(TRIM(Table14[[#This Row],[Description]]),4),Lookup!$B$2:$B$5,0),2),"") ->  | F101: AGG | I101: -
A102: 2022-11-02 | B102: PEREGRINE AVIONI DES:QUICKBOOKS ID:375020979 INDN:AVIAGLOBAL GROUP, LLC CO ID:1722616653 PPD | C102: 2000 | D102: =D101+Table14[[#This Row],[Amount]] -> 5510.95 | E102: =IFERROR(INDEX(Lookup!$B$2:$C$5,MATCH(RIGHT(TRIM(Table14[[#This Row],[Description]]),4),Lookup!$B$2:$B$5,0),2),"") ->  | F102: Peregrine
A103: 2022-11-14 | B103: STAMPS.COM 11/13 PURCHASE 855-608-2677 TX DEBIT CARD *7411 | C103: -17.99 | D103: =D102+Table14[[#This Row],[Amount]] -> 5492.96 | E103: =IFERROR(INDEX(Lookup!$B$2:$C$5,MATCH(RIGHT(TRIM(Table14[[#This Row],[Description]]),4),Lookup!$B$2:$B$5,0),2),"") -> LRC | F103: AGG | G103: Stamps | H103: 221201 - LRC ADS_BG ER Mastercard 15-2022 | I103: - | J103: 221114 - Stamps dot com.pdf
A104: 2022-11-21 | B104: MAILCHIMP *MISC 11/18 PURCHASE MAILCHIMP.COM GA DEBIT CARD *7411 | C104: -11.62 | D104: =D103+Table14[[#This Row],[Amount]] -> 5481.34 | E104: =IFERROR(INDEX(Lookup!$B$2:$C$5,MATCH(RIGHT(TRIM(Table14[[#This Row],[Description]]),4),Lookup!$B$2:$B$5,0),2),"") -> LRC | F104: AGG | G104: Mailchimp | H104: 221201 - LRC ADS_BG ER Mastercard 15-2022 | I104: - | J104: 221118 - AGG - Mailchimp Essentials MC17077641.pdf
A105: 2022-11-21 | B105: MailChimp 11/20 PURCHASE Atlanta GA DEBIT CARD *7411 | C105: -59 | D105: =D104+Table14[[#This Row],[Amount]] -> 5422.34 | E105: =IFERROR(INDEX(Lookup!$B$2:$C$5,MATCH(RIGHT(TRIM(Table14[[#This Row],[Description]]),4),Lookup!$B$2:$B$5,0),2),"") -> LRC | F105: Peregrine | G105: Mailchimp | H105: 221201 - LRC ADS_BG ER Peregrine Billable 14-2022 | I105: 017-22 | J105: 221120 - Peregrine - Mailchimp Essentials MC17092309.pdf
A106: 2022-11-21 | B106: INMOTIONHOSTING.C 11/20 PURCHASE 888-3214678 CA DEBIT CARD *7429 | C106: -119.99 | D106: =D105+Table14[[#This Row],[Amount]] -> 5302.35 | E106: =IFERROR(INDEX(Lookup!$B$2:$C$5,MATCH(RIGHT(TRIM(Table14[[#This Row],[Description]]),4),Lookup!$B$2:$B$5,0),2),"") -> FWC | F106: AGG | H106: 221201 - FWC ER Mastercard Dec-2022 | I106: - | J106: AGG - InMotion Hosting Receipt - IMH-314-144898-100.pdf
A107: 2022-11-28 | B107: INMOTIONHOSTING.C 11/25 PURCHASE 888-3214678 CA DEBIT CARD *7429 | C107: -479.85 | D107: =D106+Table14[[#This Row],[Amount]] -> 4822.5 | E107: =IFERROR(INDEX(Lookup!$B$2:$C$5,MATCH(RIGHT(TRIM(Table14[[#This Row],[Description]]),4),Lookup!$B$2:$B$5,0),2),"") -> FWC | F107: Peregrine | H107: 221201 - FWC ER Peregrine Billable EOY-2022 | I107: 018-22 | J107: Peregrine - InMotion Hosting - Receipt - IMH-414-1451828-5.pdf
A108: 2022-12-01 | B108: Monthly Fee Business Adv Relationship | C108: -29.95 | D108: =D107+Table14[[#This Row],[Amount]] -> 4792.55 | E108: =IFERROR(INDEX(Lookup!$B$2:$C$5,MATCH(RIGHT(TRIM(Table14[[#This Row],[Description]]),4),Lookup!$B$2:$B$5,0),2),"") ->  | F108: AGG | I108: -
A109: 2022-12-09 | B109: PEREGRINE AVIONI DES:QUICKBOOKS ID:375020979 INDN:AVIAGLOBAL GROUP, LLC CO ID:1722616653 PPD | C109: 2000 | D109: =D108+Table14[[#This Row],[Amount]] -> 6792.55 | E109: =IFERROR(INDEX(Lookup!$B$2:$C$5,MATCH(RIGHT(TRIM(Table14[[#This Row],[Description]]),4),Lookup!$B$2:$B$5,0),2),"") ->  | F109: Peregrine
A110: 2022-12-14 | B110: STAMPS.COM 12/13 PURCHASE 855-608-2677 TX DEBIT CARD *7411 | C110: -17.99 | D110: =D109+Table14[[#This Row],[Amount]] -> 6774.56 | E110: =IFERROR(INDEX(Lookup!$B$2:$C$5,MATCH(RIGHT(TRIM(Table14[[#This Row],[Description]]),4),Lookup!$B$2:$B$5,0),2),"") -> LRC | F110: AGG | G110: Stamps | H110: 221201 - LRC ADS_BG ER Mastercard 15-2022 | I110: - | J110: 221214 - Stamps dot com.pdf
A111: 2022-12-19 | B111: INMOTIONHOSTING.C 12/16 PURCHASE 888-3214678 CA DEBIT CARD *7429 | C111: -39.58 | D111: =D110+Table14[[#This Row],[Amount]] -> 6734.98 | E111: =IFERROR(INDEX(Lookup!$B$2:$C$5,MATCH(RIGHT(TRIM(Table14[[#This Row],[Description]]),4),Lookup!$B$2:$B$5,0),2),"") -> FWC | F111: AGG | H111: 221226 - FWC ER Mastercard EOY-2022 | I111: - | J111: 220220 - InMotion Hosting - IMH-314-144898-104.pdf
A112: 2022-12-19 | B112: MAILCHIMP *MISC 12/18 PURCHASE MAILCHIMP.COM GA DEBIT CARD *7411 | C112: -11.62 | D112: =D111+Table14[[#This Row],[Amount]] -> 6723.36 | E112: =IFERROR(INDEX(Lookup!$B$2:$C$5,MATCH(RIGHT(TRIM(Table14[[#This Row],[Description]]),4),Lookup!$B$2:$B$5,0),2),"") -> LRC | F112: AGG | G112: Mailchimp | H112: 221223 - LRC ADS_BG ER Mastercard 16-2022 | I112: - | J112: 221218 - AGG - Mailchimp Essentials MC17295205.pdf
A113: 2022-12-20 | B113: PEREGRINE AVIONI DES:QUICKBOOKS ID:375020979 INDN:AVIAGLOBAL GROUP, LLC CO ID:1722616653 PPD | C113: 7063.61 | D113: =D112+Table14[[#This Row],[Amount]] -> 13786.97 | E113: =IFERROR(INDEX(Lookup!$B$2:$C$5,MATCH(RIGHT(TRIM(Table14[[#This Row],[Description]]),4),Lookup!$B$2:$B$5,0),2),"") ->  | F113: Peregrine
A114: 2022-12-20 | B114: MailChimp 12/20 PURCHASE Atlanta GA DEBIT CARD *7411 | C114: -59 | D114: =D113+Table14[[#This Row],[Amount]] -> 13727.97 | E114: =IFERROR(INDEX(Lookup!$B$2:$C$5,MATCH(RIGHT(TRIM(Table14[[#This Row],[Description]]),4),Lookup!$B$2:$B$5,0),2),"") -> LRC | F114: Peregrine | G114: Mailchimp | H114: 221223 - LRC ADS_BG ER Peregrine Billable 17-2022 | I114: 004-23 | J114: 221220 - Peregrine - Mailchimp Essentials MC17309841.pdf
A115: 2022-12-22 | B115: TRANSFER AVIAGLOBAL GROUP, LL:ADS-B Global LLC Confirmation# 0273896038 | C115: -3300 | D115: =D114+Table14[[#This Row],[Amount]] -> 10427.97 | E115: =IFERROR(INDEX(Lookup!$B$2:$C$5,MATCH(RIGHT(TRIM(Table14[[#This Row],[Description]]),4),Lookup!$B$2:$B$5,0),2),"") -> 
A116: 2022-12-22 | B116: TRANSFER AVIAGLOBAL GROUP, LL:Forrest Colliver Confirmation# 0273906671 | C116: -3300 | D116: =D115+Table14[[#This Row],[Amount]] -> 7127.97 | E116: =IFERROR(INDEX(Lookup!$B$2:$C$5,MATCH(RIGHT(TRIM(Table14[[#This Row],[Description]]),4),Lookup!$B$2:$B$5,0),2),"") -> 
A117: 2022-12-22 | B117: Online Banking Transfer Conf# fr8bmzdeg; AERO BUSINESS DEVELOPEMENT LLC | C117: -3300 | D117: =D116+Table14[[#This Row],[Amount]] -> 3827.97 | E117: =IFERROR(INDEX(Lookup!$B$2:$C$5,MATCH(RIGHT(TRIM(Table14[[#This Row],[Description]]),4),Lookup!$B$2:$B$5,0),2),"") -> 
A118: 2022-12-23 | B118: TRANSFER AVIAGLOBAL GROUP, LL:Forrest Colliver Confirmation# 0281150631 | C118: -1549.3 | D118: =D117+Table14[[#This Row],[Amount]] -> 2278.67 | E118: =IFERROR(INDEX(Lookup!$B$2:$C$5,MATCH(RIGHT(TRIM(Table14[[#This Row],[Description]]),4),Lookup!$B$2:$B$5,0),2),"") -> 
A119: 2022-12-23 | B119: TRANSFER AVIAGLOBAL GROUP, LL:ADS-B Global LLC Confirmation# 1581367783 | C119: -70.62 | D119: =D118+Table14[[#This Row],[Amount]] -> 2208.05 | E119: =IFERROR(INDEX(Lookup!$B$2:$C$5,MATCH(RIGHT(TRIM(Table14[[#This Row],[Description]]),4),Lookup!$B$2:$B$5,0),2),"") -> 
A120: 2022-12-23 | B120: External transfer fee - 3 Day - 12/22/2022 Confirmation: 418383038 | C120: -1 | D120: =D119+Table14[[#This Row],[Amount]] -> 2207.05 | E120: =IFERROR(INDEX(Lookup!$B$2:$C$5,MATCH(RIGHT(TRIM(Table14[[#This Row],[Description]]),4),Lookup!$B$2:$B$5,0),2),"") ->  | F120: AGG
A121: 2022-12-23 | B121: External transfer fee - 3 Day - 12/22/2022 Confirmation: 418383332 | C121: -1 | D121: =D120+Table14[[#This Row],[Amount]] -> 2206.05 | E121: =IFERROR(INDEX(Lookup!$B$2:$C$5,MATCH(RIGHT(TRIM(Table14[[#This Row],[Description]]),4),Lookup!$B$2:$B$5,0),2),"") ->  | F121: AGG
A122: 2022-12-27 | B122: External transfer fee - Next Day - 12/23/2022 Confirmation: 418570494 | C122: -5 | D122: =D121+Table14[[#This Row],[Amount]] -> 2201.05 | E122: =IFERROR(INDEX(Lookup!$B$2:$C$5,MATCH(RIGHT(TRIM(Table14[[#This Row],[Description]]),4),Lookup!$B$2:$B$5,0),2),"") ->  | F122: AGG
A123: 2022-12-27 | B123: External transfer fee - 3 Day - 12/23/2022 Confirmation: 418577030 | C123: -1 | D123: =D122+Table14[[#This Row],[Amount]] -> 2200.05 | E123: =IFERROR(INDEX(Lookup!$B$2:$C$5,MATCH(RIGHT(TRIM(Table14[[#This Row],[Description]]),4),Lookup!$B$2:$B$5,0),2),"") ->  | F123: AGG
A124: 2023-01-03 | B124: OWL FOR THUNDERBI 01/02 PURCHASE WIESBADEN DEBIT CARD *7429 | C124: -10.7 | D124: =D123+Table14[[#This Row],[Amount]] -> 2189.35 | E124: FWC | F124: AE
A125: 2023-01-03 | B125: Monthly Fee Business Adv Relationship | C125: -29.95 | D125: =D124+Table14[[#This Row],[Amount]] -> 2159.4 | F125: AGG
A126: 2023-01-03 | B126: INTERNATIONAL TRANSACTION FEE 01/02 OWL FOR THUNDERBI WIESBADEN DEBIT CARD *7429 | C126: -0.32 | D126: =D125+Table14[[#This Row],[Amount]] -> 2159.08 | E126: FWC | F126: AE
A127: 2023-01-05 | B127: PEREGRINE AVIONI DES:QUICKBOOKS ID:375020979 INDN:AVIAGLOBAL GROUP, LLC CO ID:1722616653 PPD | C127: 441.97 | D127: =D126+Table14[[#This Row],[Amount]] -> 2601.05 | F127: Peregrine
A128: 2023-01-17 | B128: STAMPS.COM 01/14 PURCHASE 855-608-2677 TX DEBIT CARD *7411 | C128: -17.99 | D128: =D127+Table14[[#This Row],[Amount]] -> 2583.06 | E128: LRC | F128: AE
A129: 2023-01-18 | B129: MICHAEL L STUCK C 01/17 PURCHASE SCOTTSDALE AZ DEBIT CARD *0975 | C129: -625 | D129: =D128+Table14[[#This Row],[Amount]] -> 1958.06 | E129: HEA | F129: AGG
A130: 2023-01-19 | B130: MAILCHIMP *MISC 01/18 PURCHASE MAILCHIMP.COM GA DEBIT CARD *7411 | C130: -13.73 | D130: =D129+Table14[[#This Row],[Amount]] -> 1944.33 | E130: LRC | F130: AE | J130: 230118 - AE - Mailchimp Essentials MC17507446.pdf
A131: 2023-01-20 | B131: Mailchimp 01/20 PURCHASE Atlanta GA DEBIT CARD *7411 | C131: -69 | D131: =D130+Table14[[#This Row],[Amount]] -> 1875.33 | E131: LRC | F131: Peregrine | I131: 002-23 | J131: 230120 - Peregrine - Mailchimp Essentials MC17521714.pdf
A132: 2023-01-24 | B132: ELEMENTOR 01/24 PURCHASE WILMINGTON DE DEBIT CARD *7429 | C132: -49 | D132: =D131+Table14[[#This Row],[Amount]] -> 1826.33 | E132: FWC | F132: Peregrine | I132: 004-23
A133: 2023-01-25 | B133: REALLY-SIMPLE-SSL 01/24 PURCHASE GRONINGEN DEBIT CARD *7429 | C133: -23.2 | D133: =D132+Table14[[#This Row],[Amount]] -> 1803.13 | E133: FWC | F133: Peregrine | I133: 004-23
A134: 2023-01-25 | B134: COMPLIANZ-GDPR-PR 01/25 PURCHASE GRONINGEN DEBIT CARD *7429 | C134: -45 | D134: =D133+Table14[[#This Row],[Amount]] -> 1758.13 | E134: FWC | F134: Peregrine | I134: 004-23
A135: 2023-01-25 | B135: INTERNATIONAL TRANSACTION FEE 01/25 COMPLIANZ-GDPR-PR GRONINGEN DEBIT CARD *7429 | C135: -1.35 | D135: =D134+Table14[[#This Row],[Amount]] -> 1756.78 | E135: FWC | F135: Peregrine | I135: 004-23
A136: 2023-01-25 | B136: INTERNATIONAL TRANSACTION FEE 01/24 REALLY-SIMPLE-SSL GRONINGEN DEBIT CARD *7429 | C136: -0.7 | D136: =D135+Table14[[#This Row],[Amount]] -> 1756.08 | E136: FWC | F136: Peregrine | I136: 004-23
A137: 2023-02-01 | B137: Monthly Fee Business Adv Relationship | C137: -29.95 | D137: =D136+Table14[[#This Row],[Amount]] -> 1726.13 | E137: LRC | F137: AGG
A138: 2023-02-14 | B138: STAMPS.COM 02/13 PURCHASE 855-608-2677 TX DEBIT CARD *7411 | C138: -17.99 | D138: =D137+Table14[[#This Row],[Amount]] -> 1708.14 | E138: LRC | F138: AE
A139: 2023-02-15 | B139: PEREGRINE AVIONI DES:QUICKBOOKS ID:375020979 INDN:AVIAGLOBAL GROUP, LLC CO ID:1722616653 PPD | C139: 2000 | D139: =D138+Table14[[#This Row],[Amount]] -> 3708.14 | F139: Peregrine
A140: 2023-02-21 | B140: MAILCHIMP *MISC 02/18 PURCHASE MAILCHIMP.COM GA DEBIT CARD *7411 | C140: -13.73 | D140: =D139+Table14[[#This Row],[Amount]] -> 3694.41 | E140: LRC | F140: AE
A141: 2023-02-21 | B141: Mailchimp 02/20 PURCHASE Atlanta GA DEBIT CARD *7411 | C141: -69 | D141: =D140+Table14[[#This Row],[Amount]] -> 3625.41 | E141: LRC | F141: Peregrine | I141: 002-23

Sheet Peregrine transactions
A1: Date | B1: Description | C1: Amount | D1: Running Bal. | E1: Who | F1: Bill to | G1: Column1 | H1: Expense Report? | I1: Invoice | J1: Charge Receipt
A2: 2022-01-01 | B2: Beginning balance as of 01/01/2022 | D2: 663.71 | E2: =IFERROR(INDEX(Lookup!$B$2:$C$5,MATCH(RIGHT(TRIM(Table1[[#This Row],[Description]]),4),Lookup!$B$2:$B$5,0),2),"") -> 
A3: 2022-01-03 | B3: OWL FOR THUNDERBI 01/02 PURCHASE WIESBADEN DEBIT CARD *7429 | C3: -11.38 | D3: =D2+Table1[[#This Row],[Amount]] -> 652.33 | E3: =IFERROR(INDEX(Lookup!$B$2:$C$5,MATCH(RIGHT(TRIM(Table1[[#This Row],[Description]]),4),Lookup!$B$2:$B$5,0),2),"") -> FWC | F3: AGG | G3: Outlook | H3: 221226 - FWC ER Mastercard EOY-2022 | I3: - | J3: 220102 - OWL invoice 3-47107.pdf
A4: 2022-01-03 | B4: Monthly Fee Business Adv Relationship | C4: -29.95 | D4: =D3+Table1[[#This Row],[Amount]] -> 622.38 | E4: =IFERROR(INDEX(Lookup!$B$2:$C$5,MATCH(RIGHT(TRIM(Table1[[#This Row],[Description]]),4),Lookup!$B$2:$B$5,0),2),"") ->  | F4: AGG | I4: -
A5: 2022-01-03 | B5: INTERNATIONAL TRANSACTION FEE 01/02 OWL FOR THUNDERBI WIESBADEN DEBIT CARD *7429 | C5: -0.34 | D5: =D4+Table1[[#This Row],[Amount]] -> 622.04 | E5: =IFERROR(INDEX(Lookup!$B$2:$C$5,MATCH(RIGHT(TRIM(Table1[[#This Row],[Description]]),4),Lookup!$B$2:$B$5,0),2),"") -> FWC | F5: AGG | G5: Outlook | H5: 221226 - FWC ER Mastercard EOY-2022 | I5: - | J5: =TEXT(Table1[[#This Row],[Date]],"YYMMDD")&" - Intl Transaction Fee - "&LEFT(RIGHT(Table1[[#This Row],[Description]],LEN(Table1[[#This Row],[Description]])-LEN("international transaction fee xx/xx ")),SEARCH("DEBIT",RIGHT(Table1[[#This Row],[Description]],LEN(Table1[[#This Row],[Description]])-LEN("international transaction fee xx/xx xx"))))&".pdf" -> 220103 - Intl Transaction Fee - OWL FOR THUNDERBI WIESBADEN.pdf
A6: 2022-01-19 | B6: MAILCHIMP *MISC 01/18 PURCHASE MAILCHIMP.COM GA DEBIT CARD *7411 | C6: -9.49 | D6: =D5+Table1[[#This Row],[Amount]] -> 612.55 | E6: =IFERROR(INDEX(Lookup!$B$2:$C$5,MATCH(RIGHT(TRIM(Table1[[#This Row],[Description]]),4),Lookup!$B$2:$B$5,0),2),"") -> LRC | F6: AGG | G6: Mailchimp | H6: 220310 - LRC ADS_BG ER MasterCard 04-2022 | I6: - | J6: 220118 - AGG - Mailchimp Essentials MC14760854.pdf
A7: 2022-01-20 | B7: MailChimp 01/20 PURCHASE Atlanta GA DEBIT CARD *7411 | C7: -47.69 | D7: =D6+Table1[[#This Row],[Amount]] -> 564.86 | E7: =IFERROR(INDEX(Lookup!$B$2:$C$5,MATCH(RIGHT(TRIM(Table1[[#This Row],[Description]]),4),Lookup!$B$2:$B$5,0),2),"") -> LRC | F7: Peregrine | G7: Mailchimp | H7: 220310 - LRC ADS_BG ER MasterCard Peregrine Billable 03-2022 | I7: 005-22 | J7: 220120 - Peregrine - Mailchimp Essentials MC14777938.pdf
A8: 2022-01-24 | B8: PEREGRINE AVIONI DES:QUICKBOOKS ID:375020979 INDN:AVIAGLOBAL GROUP, LLC CO ID:1722616653 PPD | C8: 1500 | D8: =D7+Table1[[#This Row],[Amount]] -> 2064.86 | E8: =IFERROR(INDEX(Lookup!$B$2:$C$5,MATCH(RIGHT(TRIM(Table1[[#This Row],[Description]]),4),Lookup!$B$2:$B$5,0),2),"") ->  | F8: Peregrine
A9: 2022-01-24 | B9: SOFTACULOUS 01/24 PURCHASE ABU DHABI DEBIT CARD *7429 | C9: -24 | D9: =D8+Table1[[#This Row],[Amount]] -> 2040.86 | E9: =IFERROR(INDEX(Lookup!$B$2:$C$5,MATCH(RIGHT(TRIM(Table1[[#This Row],[Description]]),4),Lookup!$B$2:$B$5,0),2),"") -> FWC | F9: Peregrine | G9: Security | H9: 221221 - FWC ER Peregrine Billable 1Q22 | I9: 020-22 | J9: 220124 - Softaculous Loginizer 783150.pdf
A10: 2022-01-24 | B10: ELEMENTOR 01/24 PURCHASE WILMINGTON DE DEBIT CARD *7429 | C10: -49 | D10: =D9+Table1[[#This Row],[Amount]] -> 1991.86 | E10: =IFERROR(INDEX(Lookup!$B$2:$C$5,MATCH(RIGHT(TRIM(Table1[[#This Row],[Description]]),4),Lookup!$B$2:$B$5,0),2),"") -> FWC | F10: Peregrine | G10: CMS Editor | H10: 221221 - FWC ER Peregrine Billable 1Q22 | I10: 020-22 | J10: 220124 - Elementor Pro.pdf
A11: 2022-01-24 | B11: INTERNATIONAL TRANSACTION FEE 01/24 SOFTACULOUS ABU DHABI DEBIT CARD *7429 | C11: -0.72 | D11: =D10+Table1[[#This Row],[Amount]] -> 1991.14 | E11: =IFERROR(INDEX(Lookup!$B$2:$C$5,MATCH(RIGHT(TRIM(Table1[[#This Row],[Description]]),4),Lookup!$B$2:$B$5,0),2),"") -> FWC | F11: Peregrine | G11: Fee | H11: 221221 - FWC ER Peregrine Billable 1Q22 | I11: 020-22 | J11: =TEXT(Table1[[#This Row],[Date]],"YYMMDD")&" - Intl Transaction Fee - "&LEFT(RIGHT(Table1[[#This Row],[Description]],LEN(Table1[[#This Row],[Description]])-LEN("international transaction fee xx/xx ")),SEARCH("DEBIT",RIGHT(Table1[[#This Row],[Description]],LEN(Table1[[#This Row],[Description]])-LEN("international transaction fee xx/xx xx"))))&".pdf" -> 220124 - Intl Transaction Fee - SOFTACULOUS ABU DHABI.pdf
A12: 2022-01-25 | B12: REALLY-SIMPLE-SSL 01/24 PURCHASE GRONINGEN DEBIT CARD *7429 | C12: -23.2 | D12: =D11+Table1[[#This Row],[Amount]] -> 1967.94 | E12: =IFERROR(INDEX(Lookup!$B$2:$C$5,MATCH(RIGHT(TRIM(Table1[[#This Row],[Description]]),4),Lookup!$B$2:$B$5,0),2),"") -> FWC | F12: Peregrine | G12: SSL Cert Manager | H12: 221221 - FWC ER Peregrine Billable 1Q22 | I12: 020-22 | J12: 220124 - Really Simple SSL 2022-1993.pdf
A13: 2022-01-25 | B13: COMPLIANZ-GDPR-PR 01/25 PURCHASE GRONINGEN DEBIT CARD *7429 | C13: -45 | D13: =D12+Table1[[#This Row],[Amount]] -> 1922.94 | E13: =IFERROR(INDEX(Lookup!$B$2:$C$5,MATCH(RIGHT(TRIM(Table1[[#This Row],[Description]]),4),Lookup!$B$2:$B$5,0),2),"") -> FWC | F13: Peregrine | G13: Privacy Compliance | H13: 221221 - FWC ER Peregrine Billable 1Q22 | I13: 020-22 | J13: 220125 - Complianz 2022-0745.pdf
A14: 2022-01-25 | B14: INTERNATIONAL TRANSACTION FEE 01/25 COMPLIANZ-GDPR-PR GRONINGEN DEBIT CARD *7429 | C14: -1.35 | D14: =D13+Table1[[#This Row],[Amount]] -> 1921.59 | E14: =IFERROR(INDEX(Lookup!$B$2:$C$5,MATCH(RIGHT(TRIM(Table1[[#This Row],[Description]]),4),Lookup!$B$2:$B$5,0),2),"") -> FWC | F14: Peregrine | G14: Fee | H14: 221221 - FWC ER Peregrine Billable 1Q22 | I14: 020-22 | J14: =TEXT(Table1[[#This Row],[Date]],"YYMMDD")&" - Intl Transaction Fee - "&LEFT(RIGHT(Table1[[#This Row],[Description]],LEN(Table1[[#This Row],[Description]])-LEN("international transaction fee xx/xx ")),SEARCH("DEBIT",RIGHT(Table1[[#This Row],[Description]],LEN(Table1[[#This Row],[Description]])-LEN("international transaction fee xx/xx xx"))))&".pdf" -> 220125 - Intl Transaction Fee - COMPLIANZ-GDPR-PR GRONINGEN.pdf
A15: 2022-01-25 | B15: INTERNATIONAL TRANSACTION FEE 01/24 REALLY-SIMPLE-SSL GRONINGEN DEBIT CARD *7429 | C15: -0.7 | D15: =D14+Table1[[#This Row],[Amount]] -> 1920.89 | E15: =IFERROR(INDEX(Lookup!$B$2:$C$5,MATCH(RIGHT(TRIM(Table1[[#This Row],[Description]]),4),Lookup!$B$2:$B$5,0),2),"") -> FWC | F15: Peregrine | G15: Fee | H15: 221221 - FWC ER Peregrine Billable 1Q22 | I15: 020-22 | J15: =TEXT(Table1[[#This Row],[Date]],"YYMMDD")&" - Intl Transaction Fee - "&LEFT(RIGHT(Table1[[#This Row],[Description]],LEN(Table1[[#This Row],[Description]])-LEN("international transaction fee xx/xx ")),SEARCH("DEBIT",RIGHT(Table1[[#This Row],[Description]],LEN(Table1[[#This Row],[Description]])-LEN("international transaction fee xx/xx xx"))))&".pdf" -> 220125 - Intl Transaction Fee - REALLY-SIMPLE-SSL GRONINGEN.pdf
A16: 2022-01-26 | B16: BLS*Single Card 01/25 PURCHASE 972547584908 DEBIT CARD *7411 | C16: -6.99 | D16: =D15+Table1[[#This Row],[Amount]] -> 1913.9 | E16: =IFERROR(INDEX(Lookup!$B$2:$C$5,MATCH(RIGHT(TRIM(Table1[[#This Row],[Description]]),4),Lookup!$B$2:$B$5,0),2),"") -> LRC | F16: AGG | H16: 220310 - LRC ADS_BG ER MasterCard 04-2022 | I16: - | J16: 220125 - Clear Coast Greetings Island 341592115.pdf
A17: 2022-01-26 | B17: INTERNATIONAL TRANSACTION FEE 01/25 BLS*Single Card 972547584908 DEBIT CARD *7411 | C17: -0.21 | D17: =D16+Table1[[#This Row],[Amount]] -> 1913.69 | E17: =IFERROR(INDEX(Lookup!$B$2:$C$5,MATCH(RIGHT(TRIM(Table1[[#This Row],[Description]]),4),Lookup!$B$2:$B$5,0),2),"") -> LRC | F17: AGG | H17: 220310 - LRC ADS_BG ER MasterCard 04-2022 | I17: - | J17: 220125 - Clear Coast Greetings Island 341592115.pdf
A18: 2022-02-01 | B18: Monthly Fee Business Adv Relationship | C18: -29.95 | D18: =D17+Table1[[#This Row],[Amount]] -> 1883.74 | E18: =IFERROR(INDEX(Lookup!$B$2:$C$5,MATCH(RIGHT(TRIM(Table1[[#This Row],[Description]]),4),Lookup!$B$2:$B$5,0),2),"") ->  | F18: AGG | I18: -
A19: 2022-02-07 | B19: INMOTIONHOSTING.C 02/06 PURCHASE 888-3214678 CA DEBIT CARD *7429 | C19: -37.18 | D19: =D18+Table1[[#This Row],[Amount]] -> 1846.56 | E19: =IFERROR(INDEX(Lookup!$B$2:$C$5,MATCH(RIGHT(TRIM(Table1[[#This Row],[Description]]),4),Lookup!$B$2:$B$5,0),2),"") -> FWC | F19: AGG | G19: Domain | H19: 221226 - FWC ER Mastercard EOY-2022 | I19: - | J19: 220220 - InMotion Hosting - IMH-314-144898-87.pdf
A20: 2022-02-14 | B20: JET NET 02/10 PURCHASE 315-797-4420 NY DEBIT CARD *7411 | C20: -850 | D20: =D19+Table1[[#This Row],[Amount]] -> 996.56 | E20: =IFERROR(INDEX(Lookup!$B$2:$C$5,MATCH(RIGHT(TRIM(Table1[[#This Row],[Description]]),4),Lookup!$B$2:$B$5,0),2),"") -> LRC | F20: Peregrine | H20: 220211 ‐ LRC ADS_BG ER MasterCard Peregrine Billable 02a‐2022 | I20: 003-22 | J20: Executed Custom Special Report Project Agreement AviaGlobal Group LLC[84].pdf
A21: 2022-02-18 | B21: PEREGRINE AVIONI DES:QUICKBOOKS ID:375020979 INDN:AVIAGLOBAL GROUP, LLC CO ID:1722616653 PPD | C21: 1500 | D21: =D20+Table1[[#This Row],[Amount]] -> 2496.56 | E21: =IFERROR(INDEX(Lookup!$B$2:$C$5,MATCH(RIGHT(TRIM(Table1[[#This Row],[Description]]),4),Lookup!$B$2:$B$5,0),2),"") ->  | F21: Peregrine
A22: 2022-02-22 | B22: MailChimp 02/20 PURCHASE Atlanta GA DEBIT CARD *7411 | C22: -59 | D22: =D21+Table1[[#This Row],[Amount]] -> 2437.56 | E22: =IFERROR(INDEX(Lookup!$B$2:$C$5,MATCH(RIGHT(TRIM(Table1[[#This Row],[Description]]),4),Lookup!$B$2:$B$5,0),2),"") -> LRC | F22: Peregrine | G22: Mailchimp | H22: 220310 - LRC ADS_BG ER MasterCard Peregrine Billable 03-2022 | I22: 005-22 | J22: 220220 - Peregrine - Mailchimp Essentials MC15026518.pdf
A23: 2022-02-22 | B23: MAILCHIMP *MISC 02/18 PURCHASE MAILCHIMP.COM GA DEBIT CARD *7411 | C23: -11.62 | D23: =D22+Table1[[#This Row],[Amount]] -> 2425.94 | E23: =IFERROR(INDEX(Lookup!$B$2:$C$5,MATCH(RIGHT(TRIM(Table1[[#This Row],[Description]]),4),Lookup!$B$2:$B$5,0),2),"") -> LRC | F23: AGG | G23: Mailchimp | H23: 220310 - LRC ADS_BG ER MasterCard 04-2022 | I23: - | J23: 220218 - AGG - Mailchimp Essentials MC15010226.pdf
A24: 2022-03-01 | B24: Monthly Fee Business Adv Relationship | C24: -29.95 | D24: =D23+Table1[[#This Row],[Amount]] -> 2395.99 | E24: =IFERROR(INDEX(Lookup!$B$2:$C$5,MATCH(RIGHT(TRIM(Table1[[#This Row],[Description]]),4),Lookup!$B$2:$B$5,0),2),"") ->  | F24: AGG | I24: -
A25: 2022-03-15 | B25: Amazon.com*1N91P5 03/14 PURCHASE Amzn.com/bill WA DEBIT CARD *7411 | C25: -66.66 | D25: =D24+Table1[[#This Row],[Amount]] -> 2329.33 | E25: =IFERROR(INDEX(Lookup!$B$2:$C$5,MATCH(RIGHT(TRIM(Table1[[#This Row],[Description]]),4),Lookup!$B$2:$B$5,0),2),"") -> LRC | F25: Peregrine | H25: 220310 - LRC ADS_BG ER MasterCard Peregrine Billable 03-2022 | I25: 006-22 | J25: Amazon.com - Order 111-7793024-7025007.pdf
A26: 2022-03-15 | B26: STAMPS.COM 03/14 PURCHASE 855-608-2677 CA DEBIT CARD *7411 | C26: -30.12 | D26: =D25+Table1[[#This Row],[Amount]] -> 2299.21 | E26: =IFERROR(INDEX(Lookup!$B$2:$C$5,MATCH(RIGHT(TRIM(Table1[[#This Row],[Description]]),4),Lookup!$B$2:$B$5,0),2),"") -> LRC | F26: Peregrine | G26: Stamps | H26: 220310 - LRC ADS_BG ER MasterCard Peregrine Billable 03-2022 | I26: 006-22 | J26: Stamps dot com st2385760.pdf
A27: 2022-03-15 | B27: STAMPS.COM 03/14 PURCHASE 855-608-2677 CA DEBIT CARD *7411 | C27: -19.19 | D27: =D26+Table1[[#This Row],[Amount]] -> 2280.02 | E27: =IFERROR(INDEX(Lookup!$B$2:$C$5,MATCH(RIGHT(TRIM(Table1[[#This Row],[Description]]),4),Lookup!$B$2:$B$5,0),2),"") -> LRC | F27: AGG | G27: Stamps | H27: 220322 ‐ LRC ADS_BG ER MasterCard 07‐2022 | I27: - | J27: Stamps dot com st2385037.pdf
A28: 2022-03-15 | B28: TRANSFER AVIAGLOBAL GROUP, LL:ADS-B Global LLC Confirmation# 1737069000 | C28: -74.1 | D28: =D27+Table1[[#This Row],[Amount]] -> 2205.92 | E28: =IFERROR(INDEX(Lookup!$B$2:$C$5,MATCH(RIGHT(TRIM(Table1[[#This Row],[Description]]),4),Lookup!$B$2:$B$5,0),2),"") -> 
A29: 2022-03-16 | B29: MONSTERINSIGHTS W 03/16 PURCHASE PALM BEACH GA FL DEBIT CARD *7429 | C29: -199 | D29: =D28+Table1[[#This Row],[Amount]] -> 2006.92 | E29: =IFERROR(INDEX(Lookup!$B$2:$C$5,MATCH(RIGHT(TRIM(Table1[[#This Row],[Description]]),4),Lookup!$B$2:$B$5,0),2),"") -> FWC | F29: Peregrine | G29: Web Traffic | H29: 221221 - FWC ER Peregrine Billable 1Q22 | I29: 020-22 | J29: 220316 - Monster Insights Invoice 543619.pdf
A30: 2022-03-16 | B30: SEMPER PLUGINS AI 03/16 PURCHASE PALM BEACH GA FL DEBIT CARD *7429 | C30: -99 | D30: =D29+Table1[[#This Row],[Amount]] -> 1907.92 | E30: =IFERROR(INDEX(Lookup!$B$2:$C$5,MATCH(RIGHT(TRIM(Table1[[#This Row],[Description]]),4),Lookup!$B$2:$B$5,0),2),"") -> FWC | F30: Peregrine | G30: SEO Plugin | H30: 221221 - FWC ER Peregrine Billable 1Q22 | I30: 020-22 | J30: 220315 - aioseo Invoice 80192.pdf
A31: 2022-03-16 | B31: External transfer fee - 3 Day - 03/15/2022 Confirmation: 379444042 | C31: -1 | D31: =D30+Table1[[#This Row],[Amount]] -> 1906.92 | E31: FWC | F31: AGG | H31: 221226 - FWC ER Mastercard EOY-2022 | I31: -
A32: 2022-03-17 | B32: PEREGRINE AVIONI DES:QUICKBOOKS ID:375020979 INDN:AVIAGLOBAL GROUP, LLC CO ID:1722616653 PPD | C32: 3850 | D32: =D31+Table1[[#This Row],[Amount]] -> 5756.92 | E32: =IFERROR(INDEX(Lookup!$B$2:$C$5,MATCH(RIGHT(TRIM(Table1[[#This Row],[Description]]),4),Lookup!$B$2:$B$5,0),2),"") ->  | F32: Peregrine
A33: 2022-03-18 | B33: USPS STAMPS ENDIC 03/17 PURCHASE 888-434-0055 DC DEBIT CARD *7411 | C33: -100 | D33: =D32+Table1[[#This Row],[Amount]] -> 5656.92 | E33: =IFERROR(INDEX(Lookup!$B$2:$C$5,MATCH(RIGHT(TRIM(Table1[[#This Row],[Description]]),4),Lookup!$B$2:$B$5,0),2),"") -> LRC | F33: Peregrine | G33: Stamps | H33: 220310 - LRC ADS_BG ER MasterCard Peregrine Billable 03-2022 | I33: 006-22 | J33: Stamps dot com Postage orders.pdf
A34: 2022-03-18 | B34: USPS STAMPS ENDIC 03/17 PURCHASE 888-434-0055 DC DEBIT CARD *7411 | C34: -50 | D34: =D33+Table1[[#This Row],[Amount]] -> 5606.92 | E34: =IFERROR(INDEX(Lookup!$B$2:$C$5,MATCH(RIGHT(TRIM(Table1[[#This Row],[Description]]),4),Lookup!$B$2:$B$5,0),2),"") -> LRC | F34: Peregrine | G34: Stamps | H34: 220310 - LRC ADS_BG ER MasterCard Peregrine Billable 03-2022 | I34: 006-22 | J34: Stamps dot com Postage orders.pdf
A35: 2022-03-18 | B35: AMZN Mktp US*1N5B 03/17 PURCHASE Amzn.com/bill WA DEBIT CARD *7411 | C35: -29.63 | D35: =D34+Table1[[#This Row],[Amount]] -> 5577.29 | E35: =IFERROR(INDEX(Lookup!$B$2:$C$5,MATCH(RIGHT(TRIM(Table1[[#This Row],[Description]]),4),Lookup!$B$2:$B$5,0),2),"") -> LRC | F35: Peregrine | H35: 220310 - LRC ADS_BG ER MasterCard Peregrine Billable 03-2022 | I35: 006-22 | J35: Amazon.com - Order 114-5434031-3824202.pdf
A36: 2022-03-21 | B36: MailChimp 03/20 PURCHASE Atlanta GA DEBIT CARD *7411 | C36: -59 | D36: =D35+Table1[[#This Row],[Amount]] -> 5518.29 | E36: =IFERROR(INDEX(Lookup!$B$2:$C$5,MATCH(RIGHT(TRIM(Table1[[#This Row],[Description]]),4),Lookup!$B$2:$B$5,0),2),"") -> LRC | F36: Peregrine | G36: Mailchimp | H36: 220310 - LRC ADS_BG ER MasterCard Peregrine Billable 03-2022 | I36: 006-22 | J36: 220320 - Peregrine - Mailchimp Essentials MC15268026.pdf
A37: 2022-03-21 | B37: MAILCHIMP *MISC 03/18 PURCHASE MAILCHIMP.COM GA DEBIT CARD *7411 | C37: -11.62 | D37: =D36+Table1[[#This Row],[Amount]] -> 5506.67 | E37: =IFERROR(INDEX(Lookup!$B$2:$C$5,MATCH(RIGHT(TRIM(Table1[[#This Row],[Description]]),4),Lookup!$B$2:$B$5,0),2),"") -> LRC | F37: AGG | G37: Mailchimp | H37: 220322 ‐ LRC ADS_BG ER MasterCard 07‐2022 | I37: - | J37: 220318 - AGG - Mailchimp Essentials MC15252178.pdf
A38: 2022-03-23 | B38: TRANSFER AVIAGLOBAL GROUP, LL:ADS-B Global LLC Confirmation# 0107351744 | C38: -96.55 | D38: =D37+Table1[[#This Row],[Amount]] -> 5410.12 | E38: =IFERROR(INDEX(Lookup!$B$2:$C$5,MATCH(RIGHT(TRIM(Table1[[#This Row],[Description]]),4),Lookup!$B$2:$B$5,0),2),"") -> 
A39: 2022-03-24 | B39: USPS STAMPS ENDIC 03/23 PURCHASE 888-434-0055 DC DEBIT CARD *7411 | C39: -25 | D39: =D38+Table1[[#This Row],[Amount]] -> 5385.12 | E39: =IFERROR(INDEX(Lookup!$B$2:$C$5,MATCH(RIGHT(TRIM(Table1[[#This Row],[Description]]),4),Lookup!$B$2:$B$5,0),2),"") -> LRC | F39: Peregrine | G39: Stamps | H39: 220310 - LRC ADS_BG ER MasterCard Peregrine Billable 03-2022 | I39: 006-22 | J39: Stamps dot com Postage orders.pdf
A40: 2022-03-24 | B40: External transfer fee - 3 Day - 03/23/2022 Confirmation: 380466874 | C40: -1 | D40: =D39+Table1[[#This Row],[Amount]] -> 5384.12 | E40: =IFERROR(INDEX(Lookup!$B$2:$C$5,MATCH(RIGHT(TRIM(Table1[[#This Row],[Description]]),4),Lookup!$B$2:$B$5,0),2),"") ->  | F40: AGG | I40: -
A41: 2022-03-29 | B41: MICHAEL L STUCK C 03/28 PURCHASE SCOTTSDALE AZ DEBIT CARD *0975 | C41: -575 | D41: =D40+Table1[[#This Row],[Amount]] -> 4809.12 | E41: =IFERROR(INDEX(Lookup!$B$2:$C$5,MATCH(RIGHT(TRIM(Table1[[#This Row],[Description]]),4),Lookup!$B$2:$B$5,0),2),"") -> HEA | F41: AGG | J41: HEA AGG ER 01-2022 DebitCardRecon
A42: 2022-03-31 | B42: NATIONAL BUS AVIA 03/31 PURCHASE WASHINGTON DC DEBIT CARD *7411 | C42: -750 | D42: =D41+Table1[[#This Row],[Amount]] -> 4059.12 | E42: =IFERROR(INDEX(Lookup!$B$2:$C$5,MATCH(RIGHT(TRIM(Table1[[#This Row],[Description]]),4),Lookup!$B$2:$B$5,0),2),"") -> LRC | F42: AGG | H42: 221227 - LRC ADS_BG ER MasterCard 18-2022 | I42: - | J42: 220331 - NBAA Dues 000419790.pdf
A43: 2022-04-01 | B43: Monthly Fee Business Adv Relationship | C43: -29.95 | D43: =D42+Table1[[#This Row],[Amount]] -> 4029.17 | E43: =IFERROR(INDEX(Lookup!$B$2:$C$5,MATCH(RIGHT(TRIM(Table1[[#This Row],[Description]]),4),Lookup!$B$2:$B$5,0),2),"") ->  | F43: AGG | I43: -
A44: 2022-04-08 | B44: EVERMAP COMPANY L 04/05 PURCHASE CORVALLIS OR DEBIT CARD *0975 | C44: -149 | D44: =D43+Table1[[#This Row],[Amount]] -> 3880.17 | E44: =IFERROR(INDEX(Lookup!$B$2:$C$5,MATCH(RIGHT(TRIM(Table1[[#This Row],[Description]]),4),Lookup!$B$2:$B$5,0),2),"") -> HEA | F44: AGG | J44: HEA AGG ER 01-2022 DebitCardRecon
A45: 2022-04-13 | B45: EVERMAP COMPANY L 04/05 PURCHASE CORVALLIS OR DEBIT CARD *7411 | C45: -149 | D45: =D44+Table1[[#This Row],[Amount]] -> 3731.17 | E45: =IFERROR(INDEX(Lookup!$B$2:$C$5,MATCH(RIGHT(TRIM(Table1[[#This Row],[Description]]),4),Lookup!$B$2:$B$5,0),2),"") -> LRC | F45: AGG | H45: 221227 - LRC ADS_BG ER MasterCard 18-2022 | I45: - | J45: 220405 - Evermap PDF Tool W-48699.pdf
A46: 2022-04-14 | B46: STAMPS.COM 04/14 PURCHASE 855-608-2677 CA DEBIT CARD *7411 | C46: -17.99 | D46: =D45+Table1[[#This Row],[Amount]] -> 3713.18 | E46: =IFERROR(INDEX(Lookup!$B$2:$C$5,MATCH(RIGHT(TRIM(Table1[[#This Row],[Description]]),4),Lookup!$B$2:$B$5,0),2),"") -> LRC | F46: AGG | G46: Stamps | H46: 220624 - LRC ADS_BG ER Mastercard 10-2022 | I46: - | J46: 220416 - Stamps dot com.pdf
A47: 2022-04-19 | B47: MAILCHIMP *MISC 04/18 PURCHASE MAILCHIMP.COM GA DEBIT CARD *7411 | C47: -11.62 | D47: =D46+Table1[[#This Row],[Amount]] -> 3701.56 | E47: =IFERROR(INDEX(Lookup!$B$2:$C$5,MATCH(RIGHT(TRIM(Table1[[#This Row],[Description]]),4),Lookup!$B$2:$B$5,0),2),"") -> LRC | F47: AGG | G47: Mailchimp | H47: 220624 - LRC ADS_BG ER Mastercard 10-2022 | I47: - | J47: 220418 - AGG - Mailchimp Essentials MC15490450.pdf
A48: 2022-04-20 | B48: PEREGRINE AVIONI DES:QUICKBOOKS ID:375020979 INDN:AVIAGLOBAL GROUP, LLC CO ID:1722616653 PPD | C48: 3557.1 | D48: =D47+Table1[[#This Row],[Amount]] -> 7258.66 | E48: =IFERROR(INDEX(Lookup!$B$2:$C$5,MATCH(RIGHT(TRIM(Table1[[#This Row],[Description]]),4),Lookup!$B$2:$B$5,0),2),"") ->  | F48: Peregrine
A49: 2022-04-20 | B49: MailChimp 04/20 PURCHASE Atlanta GA DEBIT CARD *7411 | C49: -59 | D49: =D48+Table1[[#This Row],[Amount]] -> 7199.66 | E49: =IFERROR(INDEX(Lookup!$B$2:$C$5,MATCH(RIGHT(TRIM(Table1[[#This Row],[Description]]),4),Lookup!$B$2:$B$5,0),2),"") -> LRC | F49: Peregrine | G49: Mailchimp | H49: 220624 - LRC ADS_BG ER Peregrine Billable 09-2022 | I49: 011-22 | J49: 220420 - Peregrine - Mailchimp Essentials MC15506606.pdf
A50: 2022-04-22 | B50: TRANSFER AVIAGLOBAL GROUP, LL:ADS-B Global LLC Confirmation# 1763915441 | C50: -2000 | D50: =D49+Table1[[#This Row],[Amount]] -> 5199.66 | E50: =IFERROR(INDEX(Lookup!$B$2:$C$5,MATCH(RIGHT(TRIM(Table1[[#This Row],[Description]]),4),Lookup!$B$2:$B$5,0),2),"") -> 
A51: 2022-04-22 | B51: TRANSFER AVIAGLOBAL GROUP, LL:Forrest Colliver Confirmation# 0663925416 | C51: -2000 | D51: =D50+Table1[[#This Row],[Amount]] -> 3199.66 | E51: =IFERROR(INDEX(Lookup!$B$2:$C$5,MATCH(RIGHT(TRIM(Table1[[#This Row],[Description]]),4),Lookup!$B$2:$B$5,0),2),"") -> 
A52: 2022-04-22 | B52: Online Banking Transfer Conf# iuvu5ty24; AERO BUSINESS DEVELOPEMENT LLC | C52: -2000 | D52: =D51+Table1[[#This Row],[Amount]] -> 1199.66 | E52: =IFERROR(INDEX(Lookup!$B$2:$C$5,MATCH(RIGHT(TRIM(Table1[[#This Row],[Description]]),4),Lookup!$B$2:$B$5,0),2),"") -> 
A53: 2022-04-25 | B53: External transfer fee - 3 Day - 04/22/2022 Confirmation: 384618918 | C53: -1 | D53: =D52+Table1[[#This Row],[Amount]] -> 1198.66 | E53: =IFERROR(INDEX(Lookup!$B$2:$C$5,MATCH(RIGHT(TRIM(Table1[[#This Row],[Description]]),4),Lookup!$B$2:$B$5,0),2),"") ->  | F53: AGG | I53: -
A54: 2022-04-25 | B54: External transfer fee - 3 Day - 04/22/2022 Confirmation: 384619226 | C54: -1 | D54: =D53+Table1[[#This Row],[Amount]] -> 1197.66 | E54: =IFERROR(INDEX(Lookup!$B$2:$C$5,MATCH(RIGHT(TRIM(Table1[[#This Row],[Description]]),4),Lookup!$B$2:$B$5,0),2),"") ->  | F54: AGG | I54: -
A55: 2022-05-02 | B55: Monthly Fee Business Adv Relationship | C55: -29.95 | D55: =D54+Table1[[#This Row],[Amount]] -> 1167.71 | E55: =IFERROR(INDEX(Lookup!$B$2:$C$5,MATCH(RIGHT(TRIM(Table1[[#This Row],[Description]]),4),Lookup!$B$2:$B$5,0),2),"") ->  | F55: AGG | I55: -
A56: 2022-05-16 | B56: STAMPS.COM 05/14 PURCHASE 855-608-2677 CA DEBIT CARD *7411 | C56: -17.99 | D56: =D55+Table1[[#This Row],[Amount]] -> 1149.72 | E56: =IFERROR(INDEX(Lookup!$B$2:$C$5,MATCH(RIGHT(TRIM(Table1[[#This Row],[Description]]),4),Lookup!$B$2:$B$5,0),2),"") -> LRC | F56: AGG | G56: Stamps | H56: 220624 - LRC ADS_BG ER Mastercard 10-2022 | I56: - | J56: 220516 - Stamps dot com.pdf
A57: 2022-05-19 | B57: MAILCHIMP *MISC 05/18 PURCHASE MAILCHIMP.COM GA DEBIT CARD *7411 | C57: -11.62 | D57: =D56+Table1[[#This Row],[Amount]] -> 1138.1 | E57: =IFERROR(INDEX(Lookup!$B$2:$C$5,MATCH(RIGHT(TRIM(Table1[[#This Row],[Description]]),4),Lookup!$B$2:$B$5,0),2),"") -> LRC | F57: AGG | G57: Mailchimp | H57: 220624 - LRC ADS_BG ER Mastercard 10-2022 | I57: - | J57: 220518 - AGG - Mailchimp Essentials MC15724938.pdf
A58: 2022-05-20 | B58: MailChimp 05/20 PURCHASE Atlanta GA DEBIT CARD *7411 | C58: -59 | D58: =D57+Table1[[#This Row],[Amount]] -> 1079.1 | E58: =IFERROR(INDEX(Lookup!$B$2:$C$5,MATCH(RIGHT(TRIM(Table1[[#This Row],[Description]]),4),Lookup!$B$2:$B$5,0),2),"") -> LRC | F58: Peregrine | G58: Mailchimp | H58: 220624 - LRC ADS_BG ER Peregrine Billable 09-2022 | I58: 011-22 | J58: 220520 - Peregrine - Mailchimp Essentials MC15741014.pdf
A59: 2022-06-01 | B59: Monthly Fee Business Adv Relationship | C59: -29.95 | D59: =D58+Table1[[#This Row],[Amount]] -> 1049.15 | E59: =IFERROR(INDEX(Lookup!$B$2:$C$5,MATCH(RIGHT(TRIM(Table1[[#This Row],[Description]]),4),Lookup!$B$2:$B$5,0),2),"") ->  | F59: AGG | I59: -
A60: 2022-06-06 | B60: DMARCIAN* DMARCIA 06/04 PURCHASE BREVARD NC DEBIT CARD *7429 | C60: -239.88 | D60: =D59+Table1[[#This Row],[Amount]] -> 809.27 | E60: =IFERROR(INDEX(Lookup!$B$2:$C$5,MATCH(RIGHT(TRIM(Table1[[#This Row],[Description]]),4),Lookup!$B$2:$B$5,0),2),"") -> FWC | F60: AGG | H60: 221201 - FWC ER Mastercard Dec-2022 | I60: - | J60: AGG - DMARCian invoice_50733.pdf
A61: 2022-06-08 | B61: DREAMSTIME.COM 06/07 PURCHASE BRENTWOOD TN DEBIT CARD *7411 | C61: -16.99 | D61: =D60+Table1[[#This Row],[Amount]] -> 792.28 | E61: =IFERROR(INDEX(Lookup!$B$2:$C$5,MATCH(RIGHT(TRIM(Table1[[#This Row],[Description]]),4),Lookup!$B$2:$B$5,0),2),"") -> LRC | F61: Peregrine | H61: 220624 - LRC ADS_BG ER Peregrine Billable 09-2022 | I61: 011-22 | J61: 220607 - Dreamtime LLC 23829472.pdf
A62: 2022-06-08 | B62: DREAMSTIME.COM 06/07 PURCHASE BRENTWOOD TN DEBIT CARD *7411 | C62: -1 | D62: =D61+Table1[[#This Row],[Amount]] -> 791.28 | E62: =IFERROR(INDEX(Lookup!$B$2:$C$5,MATCH(RIGHT(TRIM(Table1[[#This Row],[Description]]),4),Lookup!$B$2:$B$5,0),2),"") -> LRC | F62: Peregrine | H62: 220624 - LRC ADS_BG ER Peregrine Billable 09-2022 | I62: 011-22 | J62: 220607 - Dreamtime LLC 23829472.pdf
A63: 2022-06-14 | B63: STAMPS.COM 06/14 PURCHASE 855-608-2677 CA DEBIT CARD *7411 | C63: -17.99 | D63: =D62+Table1[[#This Row],[Amount]] -> 773.29 | E63: =IFERROR(INDEX(Lookup!$B$2:$C$5,MATCH(RIGHT(TRIM(Table1[[#This Row],[Description]]),4),Lookup!$B$2:$B$5,0),2),"") -> LRC | F63: AGG | G63: Stamps | H63: 220624 - LRC ADS_BG ER Mastercard 10-2022 | I63: - | J63: 220616 - Stamps dot com.pdf
A64: 2022-06-21 | B64: MailChimp 06/20 PURCHASE Atlanta GA DEBIT CARD *7411 | C64: -59 | D64: =D63+Table1[[#This Row],[Amount]] -> 714.29 | E64: =IFERROR(INDEX(Lookup!$B$2:$C$5,MATCH(RIGHT(TRIM(Table1[[#This Row],[Description]]),4),Lookup!$B$2:$B$5,0),2),"") -> LRC | F64: Peregrine | G64: Mailchimp | H64: 220624 - LRC ADS_BG ER Peregrine Billable 09-2022 | I64: 011-22 | J64: 220620 - Peregrine - Mailchimp Essentials MC15971334.pdf
A65: 2022-06-21 | B65: MAILCHIMP *MISC 06/18 PURCHASE MAILCHIMP.COM GA DEBIT CARD *7411 | C65: -11.62 | D65: =D64+Table1[[#This Row],[Amount]] -> 702.67 | E65: =IFERROR(INDEX(Lookup!$B$2:$C$5,MATCH(RIGHT(TRIM(Table1[[#This Row],[Description]]),4),Lookup!$B$2:$B$5,0),2),"") -> LRC | F65: AGG | G65: Mailchimp | H65: 220624 - LRC ADS_BG ER Mastercard 10-2022 | I65: - | J65: 220618 - AGG - Mailchimp Essentials MC15956138.pdf
A66: 2022-06-21 | B66: ELEMENTOR 06/20 PURCHASE WILMINGTON DE DEBIT CARD *7429 | C66: -49 | D66: =D65+Table1[[#This Row],[Amount]] -> 653.67 | E66: =IFERROR(INDEX(Lookup!$B$2:$C$5,MATCH(RIGHT(TRIM(Table1[[#This Row],[Description]]),4),Lookup!$B$2:$B$5,0),2),"") -> FWC | F66: AGG | H66: 221201 - FWC ER Mastercard Dec-2022 | I66: - | J66: 220124 - Elementor Receipt 11416195.pdf
A67: 2022-06-21 | B67: REALLY-SIMPLE-SSL 06/20 PURCHASE GRONINGEN DEBIT CARD *7429 | C67: -23.2 | D67: =D66+Table1[[#This Row],[Amount]] -> 630.47 | E67: =IFERROR(INDEX(Lookup!$B$2:$C$5,MATCH(RIGHT(TRIM(Table1[[#This Row],[Description]]),4),Lookup!$B$2:$B$5,0),2),"") -> FWC | F67: AGG | H67: 221201 - FWC ER Mastercard Dec-2022 | I67: - | J67: AGG - ReallySimple SSL Receipt 2022-13884.pdf
A68: 2022-06-21 | B68: COMPLIANZ-GDPR-PR 06/20 PURCHASE GRONINGEN DEBIT CARD *7429 | C68: -45 | D68: =D67+Table1[[#This Row],[Amount]] -> 585.47 | E68: =IFERROR(INDEX(Lookup!$B$2:$C$5,MATCH(RIGHT(TRIM(Table1[[#This Row],[Description]]),4),Lookup!$B$2:$B$5,0),2),"") -> FWC | F68: AGG | H68: 221201 - FWC ER Mastercard Dec-2022 | I68: - | J68: 220125 - Complianz Invoice 2022-0745.pdf
A69: 2022-06-21 | B69: INTERNATIONAL TRANSACTION FEE 06/20 COMPLIANZ-GDPR-PR GRONINGEN DEBIT CARD *7429 | C69: -1.35 | D69: =D68+Table1[[#This Row],[Amount]] -> 584.12 | E69: =IFERROR(INDEX(Lookup!$B$2:$C$5,MATCH(RIGHT(TRIM(Table1[[#This Row],[Description]]),4),Lookup!$B$2:$B$5,0),2),"") -> FWC | F69: AGG | H69: 221201 - FWC ER Mastercard Dec-2022 | I69: - | J69: =TEXT(Table1[[#This Row],[Date]],"YYMMDD")&" - Intl Transaction Fee - "&LEFT(RIGHT(Table1[[#This Row],[Description]],LEN(Table1[[#This Row],[Description]])-LEN("international transaction fee xx/xx ")),SEARCH("DEBIT",RIGHT(Table1[[#This Row],[Description]],LEN(Table1[[#This Row],[Description]])-LEN("international transaction fee xx/xx xx"))))&".pdf" -> 220621 - Intl Transaction Fee - COMPLIANZ-GDPR-PR GRONINGEN.pdf
A70: 2022-06-21 | B70: INTERNATIONAL TRANSACTION FEE 06/20 REALLY-SIMPLE-SSL GRONINGEN DEBIT CARD *7429 | C70: -0.7 | D70: =D69+Table1[[#This Row],[Amount]] -> 583.42 | E70: =IFERROR(INDEX(Lookup!$B$2:$C$5,MATCH(RIGHT(TRIM(Table1[[#This Row],[Description]]),4),Lookup!$B$2:$B$5,0),2),"") -> FWC | F70: AGG | H70: 221201 - FWC ER Mastercard Dec-2022 | I70: - | J70: =TEXT(Table1[[#This Row],[Date]],"YYMMDD")&" - Intl Transaction Fee - "&LEFT(RIGHT(Table1[[#This Row],[Description]],LEN(Table1[[#This Row],[Description]])-LEN("international transaction fee xx/xx ")),SEARCH("DEBIT",RIGHT(Table1[[#This Row],[Description]],LEN(Table1[[#This Row],[Description]])-LEN("international transaction fee xx/xx xx"))))&".pdf" -> 220621 - Intl Transaction Fee - REALLY-SIMPLE-SSL GRONINGEN.pdf
A71: 2022-07-01 | B71: Monthly Fee Business Adv Relationship | C71: -29.95 | D71: =D70+Table1[[#This Row],[Amount]] -> 553.47 | E71: =IFERROR(INDEX(Lookup!$B$2:$C$5,MATCH(RIGHT(TRIM(Table1[[#This Row],[Description]]),4),Lookup!$B$2:$B$5,0),2),"") ->  | F71: AGG | I71: -
A72: 2022-07-08 | B72: PEREGRINE AVIONI DES:QUICKBOOKS ID:375020979 INDN:AVIAGLOBAL GROUP, LLC CO ID:1722616653 PPD | C72: 3000 | D72: =D71+Table1[[#This Row],[Amount]] -> 3553.47 | E72: =IFERROR(INDEX(Lookup!$B$2:$C$5,MATCH(RIGHT(TRIM(Table1[[#This Row],[Description]]),4),Lookup!$B$2:$B$5,0),2),"") ->  | F72: Peregrine
A73: 2022-07-14 | B73: STAMPS.COM 07/14 PURCHASE 855-608-2677 CA DEBIT CARD *7411 | C73: -17.99 | D73: =D72+Table1[[#This Row],[Amount]] -> 3535.48 | E73: =IFERROR(INDEX(Lookup!$B$2:$C$5,MATCH(RIGHT(TRIM(Table1[[#This Row],[Description]]),4),Lookup!$B$2:$B$5,0),2),"") -> LRC | F73: AGG | G73: Stamps | H73: 221020 - LRC ADS_BG ER Mastercard 12-2022 | I73: - | J73: 220714 - Stamps dot com.pdf
A74: 2022-07-19 | B74: MAILCHIMP *MISC 07/18 PURCHASE MAILCHIMP.COM GA DEBIT CARD *7411 | C74: -11.62 | D74: =D73+Table1[[#This Row],[Amount]] -> 3523.86 | E74: =IFERROR(INDEX(Lookup!$B$2:$C$5,MATCH(RIGHT(TRIM(Table1[[#This Row],[Description]]),4),Lookup!$B$2:$B$5,0),2),"") -> LRC | F74: AGG | G74: Mailchimp | H74: 221020 - LRC ADS_BG ER Mastercard 12-2022 | I74: - | J74: 220719 - AGG - Mailchimp Essentials MC16182470.pdf
A75: 2022-07-20 | B75: MailChimp 07/20 PURCHASE Atlanta GA DEBIT CARD *7411 | C75: -59 | D75: =D74+Table1[[#This Row],[Amount]] -> 3464.86 | E75: =IFERROR(INDEX(Lookup!$B$2:$C$5,MATCH(RIGHT(TRIM(Table1[[#This Row],[Description]]),4),Lookup!$B$2:$B$5,0),2),"") -> LRC | F75: Peregrine | G75: Mailchimp | H75: 221020 - LRC ADS_BG ER Peregrine Billable 13-2022 | I75: 015-22 | J75: 220720 - Peregrine - Mailchimp Essentials MC16197922.pdf
A76: 2022-08-01 | B76: SAE INTERNATIONAL 07/30 PURCHASE 7247764841 PA DEBIT CARD *7411 | C76: -120 | D76: =D75+Table1[[#This Row],[Amount]] -> 3344.86 | E76: =IFERROR(INDEX(Lookup!$B$2:$C$5,MATCH(RIGHT(TRIM(Table1[[#This Row],[Description]]),4),Lookup!$B$2:$B$5,0),2),"") -> LRC | F76: AGG | H76: 221020 - LRC ADS_BG ER Mastercard 12-2022 | I76: - | J76: 220701 - SAE Auto Renewal.pdf
A77: 2022-08-01 | B77: Monthly Fee Business Adv Relationship | C77: -29.95 | D77: =D76+Table1[[#This Row],[Amount]] -> 3314.91 | E77: =IFERROR(INDEX(Lookup!$B$2:$C$5,MATCH(RIGHT(TRIM(Table1[[#This Row],[Description]]),4),Lookup!$B$2:$B$5,0),2),"") ->  | F77: AGG | I77: -
A78: 2022-08-08 | B78: PEREGRINE AVIONI DES:QUICKBOOKS ID:375020979 INDN:AVIAGLOBAL GROUP, LLC CO ID:1722616653 PPD | C78: 3000 | D78: =D77+Table1[[#This Row],[Amount]] -> 6314.91 | E78: =IFERROR(INDEX(Lookup!$B$2:$C$5,MATCH(RIGHT(TRIM(Table1[[#This Row],[Description]]),4),Lookup!$B$2:$B$5,0),2),"") ->  | F78: Peregrine
A79: 2022-08-15 | B79: STAMPS.COM 08/14 PURCHASE 855-608-2677 CA DEBIT CARD *7411 | C79: -17.99 | D79: =D78+Table1[[#This Row],[Amount]] -> 6296.92 | E79: =IFERROR(INDEX(Lookup!$B$2:$C$5,MATCH(RIGHT(TRIM(Table1[[#This Row],[Description]]),4),Lookup!$B$2:$B$5,0),2),"") -> LRC | F79: AGG | G79: Stamps | H79: 221020 - LRC ADS_BG ER Mastercard 12-2022 | I79: - | J79: 220815 - Stamps dot com.pdf
A80: 2022-08-19 | B80: MAILCHIMP *MISC 08/18 PURCHASE MAILCHIMP.COM GA DEBIT CARD *7411 | C80: -11.62 | D80: =D79+Table1[[#This Row],[Amount]] -> 6285.3 | E80: =IFERROR(INDEX(Lookup!$B$2:$C$5,MATCH(RIGHT(TRIM(Table1[[#This Row],[Description]]),4),Lookup!$B$2:$B$5,0),2),"") -> LRC | F80: AGG | G80: Mailchimp | H80: 221020 - LRC ADS_BG ER Mastercard 12-2022 | I80: - | J80: 220818 - AGG - Mailchimp Essentials MC16405518.pdf
A81: 2022-08-22 | B81: MailChimp 08/20 PURCHASE Atlanta GA DEBIT CARD *7411 | C81: -59 | D81: =D80+Table1[[#This Row],[Amount]] -> 6226.3 | E81: =IFERROR(INDEX(Lookup!$B$2:$C$5,MATCH(RIGHT(TRIM(Table1[[#This Row],[Description]]),4),Lookup!$B$2:$B$5,0),2),"") -> LRC | F81: Peregrine | G81: Mailchimp | H81: 221020 - LRC ADS_BG ER Peregrine Billable 13-2022 | I81: 015-22 | J81: 220820 - Peregrine - Mailchimp Essentials MC16420842.pdf
A82: 2022-08-31 | B82: PEREGRINE AVIONI DES:QUICKBOOKS ID:375020979 INDN:AVIAGLOBAL GROUP, LLC CO ID:1722616653 PPD | C82: 3194.99 | D82: =D81+Table1[[#This Row],[Amount]] -> 9421.29 | E82: =IFERROR(INDEX(Lookup!$B$2:$C$5,MATCH(RIGHT(TRIM(Table1[[#This Row],[Description]]),4),Lookup!$B$2:$B$5,0),2),"") ->  | F82: Peregrine
A83: 2022-09-01 | B83: HELICOPTER ASSOCI 08/31 PURCHASE 7036834646 VA DEBIT CARD *7429 | C83: -325 | D83: =D82+Table1[[#This Row],[Amount]] -> 9096.29 | E83: =IFERROR(INDEX(Lookup!$B$2:$C$5,MATCH(RIGHT(TRIM(Table1[[#This Row],[Description]]),4),Lookup!$B$2:$B$5,0),2),"") -> FWC | F83: AGG | H83: 221201 - FWC ER Mastercard Dec-2022 | I83: - | J83: AGG - HAI Receipt- 145241.pdf
A84: 2022-09-01 | B84: Monthly Fee Business Adv Relationship | C84: -29.95 | D84: =D83+Table1[[#This Row],[Amount]] -> 9066.34 | E84: =IFERROR(INDEX(Lookup!$B$2:$C$5,MATCH(RIGHT(TRIM(Table1[[#This Row],[Description]]),4),Lookup!$B$2:$B$5,0),2),"") ->  | F84: AGG | I84: -
A85: 2022-09-07 | B85: TRANSFER AVIAGLOBAL GROUP, LL:ADS-B Global LLC Confirmation# 0156760934 | C85: -2700 | D85: =D84+Table1[[#This Row],[Amount]] -> 6366.34 | E85: =IFERROR(INDEX(Lookup!$B$2:$C$5,MATCH(RIGHT(TRIM(Table1[[#This Row],[Description]]),4),Lookup!$B$2:$B$5,0),2),"") -> 
A86: 2022-09-07 | B86: TRANSFER AVIAGLOBAL GROUP, LL:Forrest Colliver Confirmation# 1556772007 | C86: -2700 | D86: =D85+Table1[[#This Row],[Amount]] -> 3666.34 | E86: =IFERROR(INDEX(Lookup!$B$2:$C$5,MATCH(RIGHT(TRIM(Table1[[#This Row],[Description]]),4),Lookup!$B$2:$B$5,0),2),"") -> 
A87: 2022-09-07 | B87: Online Banking Transfer Conf# itu1b5i02; AERO BUSINESS DEVELOPEMENT LLC | C87: -2700 | D87: =D86+Table1[[#This Row],[Amount]] -> 966.34 | E87: =IFERROR(INDEX(Lookup!$B$2:$C$5,MATCH(RIGHT(TRIM(Table1[[#This Row],[Description]]),4),Lookup!$B$2:$B$5,0),2),"") -> 
A88: 2022-09-08 | B88: External transfer fee - 3 Day - 09/07/2022 Confirmation: 403675046 | C88: -1 | D88: =D87+Table1[[#This Row],[Amount]] -> 965.34 | E88: =IFERROR(INDEX(Lookup!$B$2:$C$5,MATCH(RIGHT(TRIM(Table1[[#This Row],[Description]]),4),Lookup!$B$2:$B$5,0),2),"") ->  | F88: AGG | I88: -
A89: 2022-09-08 | B89: External transfer fee - 3 Day - 09/07/2022 Confirmation: 403675426 | C89: -1 | D89: =D88+Table1[[#This Row],[Amount]] -> 964.34 | E89: =IFERROR(INDEX(Lookup!$B$2:$C$5,MATCH(RIGHT(TRIM(Table1[[#This Row],[Description]]),4),Lookup!$B$2:$B$5,0),2),"") ->  | F89: AGG | I89: -
A90: 2022-09-14 | B90: PEREGRINE AVIONI DES:QUICKBOOKS ID:375020979 INDN:AVIAGLOBAL GROUP, LLC CO ID:1722616653 PPD | C90: 3000 | D90: =D89+Table1[[#This Row],[Amount]] -> 3964.34 | E90: =IFERROR(INDEX(Lookup!$B$2:$C$5,MATCH(RIGHT(TRIM(Table1[[#This Row],[Description]]),4),Lookup!$B$2:$B$5,0),2),"") ->  | F90: Peregrine
A91: 2022-09-14 | B91: STAMPS.COM 09/14 PURCHASE 855-608-2677 CA DEBIT CARD *7411 | C91: -17.99 | D91: =D90+Table1[[#This Row],[Amount]] -> 3946.35 | E91: =IFERROR(INDEX(Lookup!$B$2:$C$5,MATCH(RIGHT(TRIM(Table1[[#This Row],[Description]]),4),Lookup!$B$2:$B$5,0),2),"") -> LRC | F91: AGG | G91: Stamps | H91: 221020 - LRC ADS_BG ER Mastercard 12-2022 | I91: - | J91: 220914 - Stamps dot com.pdf
A92: 2022-09-19 | B92: MAILCHIMP *MISC 09/18 PURCHASE MAILCHIMP.COM GA DEBIT CARD *7411 | C92: -11.62 | D92: =D91+Table1[[#This Row],[Amount]] -> 3934.73 | E92: =IFERROR(INDEX(Lookup!$B$2:$C$5,MATCH(RIGHT(TRIM(Table1[[#This Row],[Description]]),4),Lookup!$B$2:$B$5,0),2),"") -> LRC | F92: AGG | G92: Mailchimp | H92: 221020 - LRC ADS_BG ER Mastercard 12-2022 | I92: - | J92: 220918 - AGG - Mailchimp Essentials MC16627250.pdf
A93: 2022-09-20 | B93: MailChimp 09/20 PURCHASE Atlanta GA DEBIT CARD *7411 | C93: -59 | D93: =D92+Table1[[#This Row],[Amount]] -> 3875.73 | E93: =IFERROR(INDEX(Lookup!$B$2:$C$5,MATCH(RIGHT(TRIM(Table1[[#This Row],[Description]]),4),Lookup!$B$2:$B$5,0),2),"") -> LRC | F93: Peregrine | G93: Mailchimp | H93: 221020 - LRC ADS_BG ER Peregrine Billable 13-2022 | I93: 015-22 | J93: 220920 - Peregrine - Mailchimp Essentials MC16642305.pdf
A94: 2022-10-03 | B94: Monthly Fee Business Adv Relationship | C94: -29.95 | D94: =D93+Table1[[#This Row],[Amount]] -> 3845.78 | E94: =IFERROR(INDEX(Lookup!$B$2:$C$5,MATCH(RIGHT(TRIM(Table1[[#This Row],[Description]]),4),Lookup!$B$2:$B$5,0),2),"") ->  | F94: AGG | I94: -
A95: 2022-10-06 | B95: DOWNLOAD-MONITOR. 10/06 PURCHASE BUCURESTI DEBIT CARD *7429 | C95: -159 | D95: =D94+Table1[[#This Row],[Amount]] -> 3686.78 | E95: =IFERROR(INDEX(Lookup!$B$2:$C$5,MATCH(RIGHT(TRIM(Table1[[#This Row],[Description]]),4),Lookup!$B$2:$B$5,0),2),"") -> FWC | F95: Peregrine | H95: 221201 - FWC ER Peregrine Billable EOY-2022 | I95: 018-22 | J95: Peregrine - Download Monitor Invoice-3198.pdf
A96: 2022-10-06 | B96: INTERNATIONAL TRANSACTION FEE 10/06 DOWNLOAD-MONITOR. BUCURESTI DEBIT CARD *7429 | C96: -4.77 | D96: =D95+Table1[[#This Row],[Amount]] -> 3682.01 | E96: =IFERROR(INDEX(Lookup!$B$2:$C$5,MATCH(RIGHT(TRIM(Table1[[#This Row],[Description]]),4),Lookup!$B$2:$B$5,0),2),"") -> FWC | F96: Peregrine | H96: 221201 - FWC ER Peregrine Billable EOY-2022 | I96: 018-22 | J96: 221006 - INTERNATIONAL TRANSACTION FEE DOWNLOAD-MONITOR
A97: 2022-10-17 | B97: STAMPS.COM 10/14 PURCHASE 855-608-2677 CA DEBIT CARD *7411 | C97: -17.99 | D97: =D96+Table1[[#This Row],[Amount]] -> 3664.02 | E97: =IFERROR(INDEX(Lookup!$B$2:$C$5,MATCH(RIGHT(TRIM(Table1[[#This Row],[Description]]),4),Lookup!$B$2:$B$5,0),2),"") -> LRC | F97: AGG | G97: Stamps | H97: 221020 - LRC ADS_BG ER Mastercard 12-2022 | I97: - | J97: 221017 - Stamps dot com.pdf
A98: 2022-10-19 | B98: MAILCHIMP *MISC 10/18 PURCHASE MAILCHIMP.COM GA DEBIT CARD *7411 | C98: -11.62 | D98: =D97+Table1[[#This Row],[Amount]] -> 3652.4 | E98: =IFERROR(INDEX(Lookup!$B$2:$C$5,MATCH(RIGHT(TRIM(Table1[[#This Row],[Description]]),4),Lookup!$B$2:$B$5,0),2),"") -> LRC | F98: AGG | G98: Mailchimp | H98: 221020 - LRC ADS_BG ER Mastercard 12-2022 | I98: - | J98: 221018 - AGG - Mailchimp Essentials MC16858121.pdf
A99: 2022-10-20 | B99: MailChimp 10/20 PURCHASE Atlanta GA DEBIT CARD *7411 | C99: -59 | D99: =D98+Table1[[#This Row],[Amount]] -> 3593.4 | E99: =IFERROR(INDEX(Lookup!$B$2:$C$5,MATCH(RIGHT(TRIM(Table1[[#This Row],[Description]]),4),Lookup!$B$2:$B$5,0),2),"") -> LRC | F99: Peregrine | G99: Mailchimp | H99: 221020 - LRC ADS_BG ER Peregrine Billable 13-2022 | I99: 015-22 | J99: 221020 - Peregrine - Mailchimp Essentials MC16642305.pdf
A100: 2022-10-31 | B100: NATIONAL BUS AVIA 10/28 PURCHASE WASHINGTON DC DEBIT CARD *7411 | C100: -52.5 | D100: =D99+Table1[[#This Row],[Amount]] -> 3540.9 | E100: =IFERROR(INDEX(Lookup!$B$2:$C$5,MATCH(RIGHT(TRIM(Table1[[#This Row],[Description]]),4),Lookup!$B$2:$B$5,0),2),"") -> LRC | F100: AGG | H100: 221201 - LRC ADS_BG ER Mastercard 15-2022 | I100: - | J100: 221028 - NBAA Affilliated Prof Membership 000430626.pdf
A101: 2022-11-01 | B101: Monthly Fee Business Adv Relationship | C101: -29.95 | D101: =D100+Table1[[#This Row],[Amount]] -> 3510.95 | E101: =IFERROR(INDEX(Lookup!$B$2:$C$5,MATCH(RIGHT(TRIM(Table1[[#This Row],[Description]]),4),Lookup!$B$2:$B$5,0),2),"") ->  | F101: AGG | I101: -
A102: 2022-11-02 | B102: PEREGRINE AVIONI DES:QUICKBOOKS ID:375020979 INDN:AVIAGLOBAL GROUP, LLC CO ID:1722616653 PPD | C102: 2000 | D102: =D101+Table1[[#This Row],[Amount]] -> 5510.95 | E102: =IFERROR(INDEX(Lookup!$B$2:$C$5,MATCH(RIGHT(TRIM(Table1[[#This Row],[Description]]),4),Lookup!$B$2:$B$5,0),2),"") ->  | F102: Peregrine
A103: 2022-11-14 | B103: STAMPS.COM 11/13 PURCHASE 855-608-2677 TX DEBIT CARD *7411 | C103: -17.99 | D103: =D102+Table1[[#This Row],[Amount]] -> 5492.96 | E103: =IFERROR(INDEX(Lookup!$B$2:$C$5,MATCH(RIGHT(TRIM(Table1[[#This Row],[Description]]),4),Lookup!$B$2:$B$5,0),2),"") -> LRC | F103: AGG | G103: Stamps | H103: 221201 - LRC ADS_BG ER Mastercard 15-2022 | I103: - | J103: 221114 - Stamps dot com.pdf
A104: 2022-11-21 | B104: MAILCHIMP *MISC 11/18 PURCHASE MAILCHIMP.COM GA DEBIT CARD *7411 | C104: -11.62 | D104: =D103+Table1[[#This Row],[Amount]] -> 5481.34 | E104: =IFERROR(INDEX(Lookup!$B$2:$C$5,MATCH(RIGHT(TRIM(Table1[[#This Row],[Description]]),4),Lookup!$B$2:$B$5,0),2),"") -> LRC | F104: AGG | G104: Mailchimp | H104: 221201 - LRC ADS_BG ER Mastercard 15-2022 | I104: - | J104: 221118 - AGG - Mailchimp Essentials MC17077641.pdf
A105: 2022-11-21 | B105: MailChimp 11/20 PURCHASE Atlanta GA DEBIT CARD *7411 | C105: -59 | D105: =D104+Table1[[#This Row],[Amount]] -> 5422.34 | E105: =IFERROR(INDEX(Lookup!$B$2:$C$5,MATCH(RIGHT(TRIM(Table1[[#This Row],[Description]]),4),Lookup!$B$2:$B$5,0),2),"") -> LRC | F105: Peregrine | G105: Mailchimp | H105: 221201 - LRC ADS_BG ER Peregrine Billable 14-2022 | I105: 017-22 | J105: 221120 - Peregrine - Mailchimp Essentials MC17092309.pdf
A106: 2022-11-21 | B106: INMOTIONHOSTING.C 11/20 PURCHASE 888-3214678 CA DEBIT CARD *7429 | C106: -119.99 | D106: =D105+Table1[[#This Row],[Amount]] -> 5302.35 | E106: =IFERROR(INDEX(Lookup!$B$2:$C$5,MATCH(RIGHT(TRIM(Table1[[#This Row],[Description]]),4),Lookup!$B$2:$B$5,0),2),"") -> FWC | F106: AGG | H106: 221201 - FWC ER Mastercard Dec-2022 | I106: - | J106: AGG - InMotion Hosting Receipt - IMH-314-144898-100.pdf
A107: 2022-11-28 | B107: INMOTIONHOSTING.C 11/25 PURCHASE 888-3214678 CA DEBIT CARD *7429 | C107: -479.85 | D107: =D106+Table1[[#This Row],[Amount]] -> 4822.5 | E107: =IFERROR(INDEX(Lookup!$B$2:$C$5,MATCH(RIGHT(TRIM(Table1[[#This Row],[Description]]),4),Lookup!$B$2:$B$5,0),2),"") -> FWC | F107: Peregrine | H107: 221201 - FWC ER Peregrine Billable EOY-2022 | I107: 018-22 | J107: Peregrine - InMotion Hosting - Receipt - IMH-414-1451828-5.pdf
A108: 2022-12-01 | B108: Monthly Fee Business Adv Relationship | C108: -29.95 | D108: =D107+Table1[[#This Row],[Amount]] -> 4792.55 | E108: =IFERROR(INDEX(Lookup!$B$2:$C$5,MATCH(RIGHT(TRIM(Table1[[#This Row],[Description]]),4),Lookup!$B$2:$B$5,0),2),"") ->  | F108: AGG | I108: -
A109: 2022-12-09 | B109: PEREGRINE AVIONI DES:QUICKBOOKS ID:375020979 INDN:AVIAGLOBAL GROUP, LLC CO ID:1722616653 PPD | C109: 2000 | D109: =D108+Table1[[#This Row],[Amount]] -> 6792.55 | E109: =IFERROR(INDEX(Lookup!$B$2:$C$5,MATCH(RIGHT(TRIM(Table1[[#This Row],[Description]]),4),Lookup!$B$2:$B$5,0),2),"") ->  | F109: Peregrine
A110: 2022-12-14 | B110: STAMPS.COM 12/13 PURCHASE 855-608-2677 TX DEBIT CARD *7411 | C110: -17.99 | D110: =D109+Table1[[#This Row],[Amount]] -> 6774.56 | E110: =IFERROR(INDEX(Lookup!$B$2:$C$5,MATCH(RIGHT(TRIM(Table1[[#This Row],[Description]]),4),Lookup!$B$2:$B$5,0),2),"") -> LRC | F110: AGG | G110: Stamps | H110: 221201 - LRC ADS_BG ER Mastercard 15-2022 | I110: - | J110: 221214 - Stamps dot com.pdf
A111: 2022-12-19 | B111: INMOTIONHOSTING.C 12/16 PURCHASE 888-3214678 CA DEBIT CARD *7429 | C111: -39.58 | D111: =D110+Table1[[#This Row],[Amount]] -> 6734.98 | E111: =IFERROR(INDEX(Lookup!$B$2:$C$5,MATCH(RIGHT(TRIM(Table1[[#This Row],[Description]]),4),Lookup!$B$2:$B$5,0),2),"") -> FWC | F111: AGG | H111: 221226 - FWC ER Mastercard EOY-2022 | I111: - | J111: 220220 - InMotion Hosting - IMH-314-144898-104.pdf
A112: 2022-12-19 | B112: MAILCHIMP *MISC 12/18 PURCHASE MAILCHIMP.COM GA DEBIT CARD *7411 | C112: -11.62 | D112: =D111+Table1[[#This Row],[Amount]] -> 6723.36 | E112: =IFERROR(INDEX(Lookup!$B$2:$C$5,MATCH(RIGHT(TRIM(Table1[[#This Row],[Description]]),4),Lookup!$B$2:$B$5,0),2),"") -> LRC | F112: AGG | G112: Mailchimp | H112: 221223 - LRC ADS_BG ER Mastercard 16-2022 | I112: - | J112: 221218 - AGG - Mailchimp Essentials MC17295205.pdf
A113: 2022-12-20 | B113: PEREGRINE AVIONI DES:QUICKBOOKS ID:375020979 INDN:AVIAGLOBAL GROUP, LLC CO ID:1722616653 PPD | C113: 7063.61 | D113: =D112+Table1[[#This Row],[Amount]] -> 13786.97 | E113: =IFERROR(INDEX(Lookup!$B$2:$C$5,MATCH(RIGHT(TRIM(Table1[[#This Row],[Description]]),4),Lookup!$B$2:$B$5,0),2),"") ->  | F113: Peregrine
A114: 2022-12-20 | B114: MailChimp 12/20 PURCHASE Atlanta GA DEBIT CARD *7411 | C114: -59 | D114: =D113+Table14[[#This Row],[Amount]] -> 13727.97 | E114: =IFERROR(INDEX(Lookup!$B$2:$C$5,MATCH(RIGHT(TRIM(Table14[[#This Row],[Description]]),4),Lookup!$B$2:$B$5,0),2),"") -> LRC | F114: Peregrine | G114: Mailchimp | H114: 221223 - LRC ADS_BG ER Peregrine Billable 17-2022 | I114: 004-23 | J114: 221220 - Peregrine - Mailchimp Essentials MC17309841.pdf
A115: 2022-12-22 | B115: TRANSFER AVIAGLOBAL GROUP, LL:ADS-B Global LLC Confirmation# 0273896038 | C115: -3300 | D115: =D114+Table14[[#This Row],[Amount]] -> 10427.97 | E115: =IFERROR(INDEX(Lookup!$B$2:$C$5,MATCH(RIGHT(TRIM(Table14[[#This Row],[Description]]),4),Lookup!$B$2:$B$5,0),2),"") -> 
A116: 2022-12-22 | B116: TRANSFER AVIAGLOBAL GROUP, LL:Forrest Colliver Confirmation# 0273906671 | C116: -3300 | D116: =D115+Table14[[#This Row],[Amount]] -> 7127.97 | E116: =IFERROR(INDEX(Lookup!$B$2:$C$5,MATCH(RIGHT(TRIM(Table14[[#This Row],[Description]]),4),Lookup!$B$2:$B$5,0),2),"") -> 
A117: 2022-12-22 | B117: Online Banking Transfer Conf# fr8bmzdeg; AERO BUSINESS DEVELOPEMENT LLC | C117: -3300 | D117: =D116+Table14[[#This Row],[Amount]] -> 3827.97 | E117: =IFERROR(INDEX(Lookup!$B$2:$C$5,MATCH(RIGHT(TRIM(Table14[[#This Row],[Description]]),4),Lookup!$B$2:$B$5,0),2),"") -> 
A118: 2022-12-23 | B118: TRANSFER AVIAGLOBAL GROUP, LL:Forrest Colliver Confirmation# 0281150631 | C118: -1549.3 | D118: =D117+Table14[[#This Row],[Amount]] -> 2278.67 | E118: =IFERROR(INDEX(Lookup!$B$2:$C$5,MATCH(RIGHT(TRIM(Table14[[#This Row],[Description]]),4),Lookup!$B$2:$B$5,0),2),"") -> 
A119: 2022-12-23 | B119: TRANSFER AVIAGLOBAL GROUP, LL:ADS-B Global LLC Confirmation# 1581367783 | C119: -70.62 | D119: =D118+Table14[[#This Row],[Amount]] -> 2208.05 | E119: =IFERROR(INDEX(Lookup!$B$2:$C$5,MATCH(RIGHT(TRIM(Table14[[#This Row],[Description]]),4),Lookup!$B$2:$B$5,0),2),"") -> 
A120: 2022-12-23 | B120: External transfer fee - 3 Day - 12/22/2022 Confirmation: 418383038 | C120: -1 | D120: =D119+Table14[[#This Row],[Amount]] -> 2207.05 | E120: =IFERROR(INDEX(Lookup!$B$2:$C$5,MATCH(RIGHT(TRIM(Table14[[#This Row],[Description]]),4),Lookup!$B$2:$B$5,0),2),"") ->  | F120: AGG
A121: 2022-12-23 | B121: External transfer fee - 3 Day - 12/22/2022 Confirmation: 418383332 | C121: -1 | D121: =D120+Table14[[#This Row],[Amount]] -> 2206.05 | E121: =IFERROR(INDEX(Lookup!$B$2:$C$5,MATCH(RIGHT(TRIM(Table14[[#This Row],[Description]]),4),Lookup!$B$2:$B$5,0),2),"") ->  | F121: AGG
A122: 2022-12-27 | B122: External transfer fee - Next Day - 12/23/2022 Confirmation: 418570494 | C122: -5 | D122: =D121+Table14[[#This Row],[Amount]] -> 2201.05 | E122: =IFERROR(INDEX(Lookup!$B$2:$C$5,MATCH(RIGHT(TRIM(Table14[[#This Row],[Description]]),4),Lookup!$B$2:$B$5,0),2),"") ->  | F122: AGG
A123: 2022-12-27 | B123: External transfer fee - 3 Day - 12/23/2022 Confirmation: 418577030 | C123: -1 | D123: =D122+Table14[[#This Row],[Amount]] -> 2200.05 | E123: =IFERROR(INDEX(Lookup!$B$2:$C$5,MATCH(RIGHT(TRIM(Table14[[#This Row],[Description]]),4),Lookup!$B$2:$B$5,0),2),"") ->  | F123: AGG
A124: 2023-01-03 | B124: OWL FOR THUNDERBI 01/02 PURCHASE WIESBADEN DEBIT CARD *7429 | C124: -10.7 | D124: =D123+Table14[[#This Row],[Amount]] -> 2189.35 | E124: FWC | F124: AE
A125: 2023-01-03 | B125: Monthly Fee Business Adv Relationship | C125: -29.95 | D125: =D124+Table14[[#This Row],[Amount]] -> 2159.4 | F125: AGG
A126: 2023-01-03 | B126: INTERNATIONAL TRANSACTION FEE 01/02 OWL FOR THUNDERBI WIESBADEN DEBIT CARD *7429 | C126: -0.32 | D126: =D125+Table14[[#This Row],[Amount]] -> 2159.08 | E126: FWC | F126: AE
A127: 2023-01-05 | B127: PEREGRINE AVIONI DES:QUICKBOOKS ID:375020979 INDN:AVIAGLOBAL GROUP, LLC CO ID:1722616653 PPD | C127: 441.97 | D127: =D126+Table14[[#This Row],[Amount]] -> 2601.05 | F127: Peregrine
A128: 2023-01-17 | B128: STAMPS.COM 01/14 PURCHASE 855-608-2677 TX DEBIT CARD *7411 | C128: -17.99 | D128: =D127+Table14[[#This Row],[Amount]] -> 2583.06 | E128: LRC | F128: AE
A129: 2023-01-18 | B129: MICHAEL L STUCK C 01/17 PURCHASE SCOTTSDALE AZ DEBIT CARD *0975 | C129: -625 | D129: =D128+Table14[[#This Row],[Amount]] -> 1958.06 | E129: HEA | F129: AGG
A130: 2023-01-19 | B130: MAILCHIMP *MISC 01/18 PURCHASE MAILCHIMP.COM GA DEBIT CARD *7411 | C130: -13.73 | D130: =D129+Table14[[#This Row],[Amount]] -> 1944.33 | E130: LRC | F130: AE | J130: 230118 - AE - Mailchimp Essentials MC17507446.pdf
A131: 2023-01-20 | B131: Mailchimp 01/20 PURCHASE Atlanta GA DEBIT CARD *7411 | C131: -69 | D131: =D130+Table14[[#This Row],[Amount]] -> 1875.33 | E131: LRC | F131: Peregrine | I131: 002-23 | J131: 230120 - Peregrine - Mailchimp Essentials MC17521714.pdf
A132: 2023-01-24 | B132: ELEMENTOR 01/24 PURCHASE WILMINGTON DE DEBIT CARD *7429 | C132: -49 | D132: =D131+Table14[[#This Row],[Amount]] -> 1826.33 | E132: FWC | F132: Peregrine | I132: 004-23
A133: 2023-01-25 | B133: REALLY-SIMPLE-SSL 01/24 PURCHASE GRONINGEN DEBIT CARD *7429 | C133: -23.2 | D133: =D132+Table14[[#This Row],[Amount]] -> 1803.13 | E133: FWC | F133: Peregrine | I133: 004-23
A134: 2023-01-25 | B134: COMPLIANZ-GDPR-PR 01/25 PURCHASE GRONINGEN DEBIT CARD *7429 | C134: -45 | D134: =D133+Table14[[#This Row],[Amount]] -> 1758.13 | E134: FWC | F134: Peregrine | I134: 004-23
A135: 2023-01-25 | B135: INTERNATIONAL TRANSACTION FEE 01/25 COMPLIANZ-GDPR-PR GRONINGEN DEBIT CARD *7429 | C135: -1.35 | D135: =D134+Table14[[#This Row],[Amount]] -> 1756.78 | E135: FWC | F135: Peregrine | I135: 004-23
A136: 2023-01-25 | B136: INTERNATIONAL TRANSACTION FEE 01/24 REALLY-SIMPLE-SSL GRONINGEN DEBIT CARD *7429 | C136: -0.7 | D136: =D135+Table14[[#This Row],[Amount]] -> 1756.08 | E136: FWC | F136: Peregrine | I136: 004-23
A137: 2023-02-01 | B137: Monthly Fee Business Adv Relationship | C137: -29.95 | D137: =D136+Table14[[#This Row],[Amount]] -> 1726.13 | E137: LRC | F137: AGG
A138: 2023-02-14 | B138: STAMPS.COM 02/13 PURCHASE 855-608-2677 TX DEBIT CARD *7411 | C138: -17.99 | D138: =D137+Table14[[#This Row],[Amount]] -> 1708.14 | E138: LRC | F138: AE
A139: 2023-02-15 | B139: PEREGRINE AVIONI DES:QUICKBOOKS ID:375020979 INDN:AVIAGLOBAL GROUP, LLC CO ID:1722616653 PPD | C139: 2000 | D139: =D138+Table14[[#This Row],[Amount]] -> 3708.14 | F139: Peregrine
A140: 2023-02-21 | B140: MAILCHIMP *MISC 02/18 PURCHASE MAILCHIMP.COM GA DEBIT CARD *7411 | C140: -13.73 | D140: =D139+Table14[[#This Row],[Amount]] -> 3694.41 | E140: LRC | F140: AE
A141: 2023-02-21 | B141: Mailchimp 02/20 PURCHASE Atlanta GA DEBIT CARD *7411 | C141: -69 | D141: =D140+Table14[[#This Row],[Amount]] -> 3625.41 | E141: LRC | F141: Peregrine | I141: 002-23
A145: Date | B145: Description | C145: Amount | D145: Running Bal. | E145: Who | F145: Bill to | G145: Column1 | H145: Expense Report? | I145: Invoice | J145: Charge Receipt
F146: Peregrine
A147: Date | B147: Description | C147: Amount | D147: Running Bal. | E147: Who | F147: Bill to | G147: Column1 | H147: Expense Report? | I147: Invoice | J147: Charge Receipt
A148: 2022-01-20 | B148: MailChimp 01/20 PURCHASE Atlanta GA DEBIT CARD *7411 | C148: -47.69 | D148: 564.86 | E148: LRC | F148: Peregrine | G148: Mailchimp | H148: 220310 - LRC ADS_BG ER MasterCard Peregrine Billable 03-2022 | I148: 005-22 | J148: 220120 - Peregrine - Mailchimp Essentials MC14777938.pdf
A149: 2022-01-24 | B149: PEREGRINE AVIONI DES:QUICKBOOKS ID:375020979 INDN:AVIAGLOBAL GROUP, LLC CO ID:1722616653 PPD | C149: 1500 | D149: 2064.86 | F149: Peregrine
A150: 2022-01-24 | B150: SOFTACULOUS 01/24 PURCHASE ABU DHABI DEBIT CARD *7429 | C150: -24 | D150: 2040.86 | E150: FWC | F150: Peregrine | G150: Security | H150: 221221 - FWC ER Peregrine Billable 1Q22 | I150: 020-22 | J150: 220124 - Softaculous Loginizer 783150.pdf
A151: 2022-01-24 | B151: ELEMENTOR 01/24 PURCHASE WILMINGTON DE DEBIT CARD *7429 | C151: -49 | D151: 1991.86 | E151: FWC | F151: Peregrine | G151: CMS Editor | H151: 221221 - FWC ER Peregrine Billable 1Q22 | I151: 020-22 | J151: 220124 - Elementor Pro.pdf
A152: 2022-01-24 | B152: INTERNATIONAL TRANSACTION FEE 01/24 SOFTACULOUS ABU DHABI DEBIT CARD *7429 | C152: -0.72 | D152: 1991.14 | E152: FWC | F152: Peregrine | G152: Fee | H152: 221221 - FWC ER Peregrine Billable 1Q22 | I152: 020-22 | J152: 220124 - Intl Transaction Fee - SOFTACULOUS ABU DHABI.pdf
A153: 2022-01-25 | B153: REALLY-SIMPLE-SSL 01/24 PURCHASE GRONINGEN DEBIT CARD *7429 | C153: -23.2 | D153: 1967.94 | E153: FWC | F153: Peregrine | G153: SSL Cert Manager | H153: 221221 - FWC ER Peregrine Billable 1Q22 | I153: 020-22 | J153: 220124 - Really Simple SSL 2022-1993.pdf
A154: 2022-01-25 | B154: COMPLIANZ-GDPR-PR 01/25 PURCHASE GRONINGEN DEBIT CARD *7429 | C154: -45 | D154: 1922.94 | E154: FWC | F154: Peregrine | G154: Privacy Compliance | H154: 221221 - FWC ER Peregrine Billable 1Q22 | I154: 020-22 | J154: 220125 - Complianz 2022-0745.pdf
A155: 2022-01-25 | B155: INTERNATIONAL TRANSACTION FEE 01/25 COMPLIANZ-GDPR-PR GRONINGEN DEBIT CARD *7429 | C155: -1.35 | D155: 1921.59 | E155: FWC | F155: Peregrine | G155: Fee | H155: 221221 - FWC ER Peregrine Billable 1Q22 | I155: 020-22 | J155: 220125 - Intl Transaction Fee - COMPLIANZ-GDPR-PR GRONINGEN.pdf
A156: 2022-01-25 | B156: INTERNATIONAL TRANSACTION FEE 01/24 REALLY-SIMPLE-SSL GRONINGEN DEBIT CARD *7429 | C156: -0.7 | D156: 1920.89 | E156: FWC | F156: Peregrine | G156: Fee | H156: 221221 - FWC ER Peregrine Billable 1Q22 | I156: 020-22 | J156: 220125 - Intl Transaction Fee - REALLY-SIMPLE-SSL GRONINGEN.pdf
A157: 2022-02-14 | B157: JET NET 02/10 PURCHASE 315-797-4420 NY DEBIT CARD *7411 | C157: -850 | D157: 996.56 | E157: LRC | F157: Peregrine | H157: 220211 ‐ LRC ADS_BG ER MasterCard Peregrine Billable 02a‐2022 | I157: 003-22 | J157: Executed Custom Special Report Project Agreement AviaGlobal Group LLC[84].pdf
A158: 2022-02-18 | B158: PEREGRINE AVIONI DES:QUICKBOOKS ID:375020979 INDN:AVIAGLOBAL GROUP, LLC CO ID:1722616653 PPD | C158: 1500 | D158: 2496.56 | F158: Peregrine
A159: 2022-02-22 | B159: MailChimp 02/20 PURCHASE Atlanta GA DEBIT CARD *7411 | C159: -59 | D159: 2437.56 | E159: LRC | F159: Peregrine | G159: Mailchimp | H159: 220310 - LRC ADS_BG ER MasterCard Peregrine Billable 03-2022 | I159: 005-22 | J159: 220220 - Peregrine - Mailchimp Essentials MC15026518.pdf
A160: 2022-03-15 | B160: Amazon.com*1N91P5 03/14 PURCHASE Amzn.com/bill WA DEBIT CARD *7411 | C160: -66.66 | D160: 2329.33 | E160: LRC | F160: Peregrine | H160: 220310 - LRC ADS_BG ER MasterCard Peregrine Billable 03-2022 | I160: 006-22 | J160: Amazon.com - Order 111-7793024-7025007.pdf
A161: 2022-03-15 | B161: STAMPS.COM 03/14 PURCHASE 855-608-2677 CA DEBIT CARD *7411 | C161: -30.12 | D161: 2299.21 | E161: LRC | F161: Peregrine | G161: Stamps | H161: 220310 - LRC ADS_BG ER MasterCard Peregrine Billable 03-2022 | I161: 006-22 | J161: Stamps dot com st2385760.pdf
A162: 2022-03-16 | B162: MONSTERINSIGHTS W 03/16 PURCHASE PALM BEACH GA FL DEBIT CARD *7429 | C162: -199 | D162: 2006.92 | E162: FWC | F162: Peregrine | G162: Web Traffic | H162: 221221 - FWC ER Peregrine Billable 1Q22 | I162: 020-22 | J162: 220316 - Monster Insights Invoice 543619.pdf
A163: 2022-03-16 | B163: SEMPER PLUGINS AI 03/16 PURCHASE PALM BEACH GA FL DEBIT CARD *7429 | C163: -99 | D163: 1907.92 | E163: FWC | F163: Peregrine | G163: SEO Plugin | H163: 221221 - FWC ER Peregrine Billable 1Q22 | I163: 020-22 | J163: 220315 - aioseo Invoice 80192.pdf
A164: 2022-03-17 | B164: PEREGRINE AVIONI DES:QUICKBOOKS ID:375020979 INDN:AVIAGLOBAL GROUP, LLC CO ID:1722616653 PPD | C164: 3850 | D164: 5756.92 | F164: Peregrine
A165: 2022-03-18 | B165: USPS STAMPS ENDIC 03/17 PURCHASE 888-434-0055 DC DEBIT CARD *7411 | C165: -100 | D165: 5656.92 | E165: LRC | F165: Peregrine | G165: Stamps | H165: 220310 - LRC ADS_BG ER MasterCard Peregrine Billable 03-2022 | I165: 006-22 | J165: Stamps dot com Postage orders.pdf
A166: 2022-03-18 | B166: USPS STAMPS ENDIC 03/17 PURCHASE 888-434-0055 DC DEBIT CARD *7411 | C166: -50 | D166: 5606.92 | E166: LRC | F166: Peregrine | G166: Stamps | H166: 220310 - LRC ADS_BG ER MasterCard Peregrine Billable 03-2022 | I166: 006-22 | J166: Stamps dot com Postage orders.pdf
A167: 2022-03-18 | B167: AMZN Mktp US*1N5B 03/17 PURCHASE Amzn.com/bill WA DEBIT CARD *7411 | C167: -29.63 | D167: 5577.29 | E167: LRC | F167: Peregrine | H167: 220310 - LRC ADS_BG ER MasterCard Peregrine Billable 03-2022 | I167: 006-22 | J167: Amazon.com - Order 114-5434031-3824202.pdf
A168: 2022-03-21 | B168: MailChimp 03/20 PURCHASE Atlanta GA DEBIT CARD *7411 | C168: -59 | D168: 5518.29 | E168: LRC | F168: Peregrine | G168: Mailchimp | H168: 220310 - LRC ADS_BG ER MasterCard Peregrine Billable 03-2022 | I168: 006-22 | J168: 220320 - Peregrine - Mailchimp Essentials MC15268026.pdf
A169: 2022-03-24 | B169: USPS STAMPS ENDIC 03/23 PURCHASE 888-434-0055 DC DEBIT CARD *7411 | C169: -25 | D169: 5385.12 | E169: LRC | F169: Peregrine | G169: Stamps | H169: 220310 - LRC ADS_BG ER MasterCard Peregrine Billable 03-2022 | I169: 006-22 | J169: Stamps dot com Postage orders.pdf
A170: 2022-04-20 | B170: PEREGRINE AVIONI DES:QUICKBOOKS ID:375020979 INDN:AVIAGLOBAL GROUP, LLC CO ID:1722616653 PPD | C170: 3557.1 | D170: 7258.66 | F170: Peregrine
A171: 2022-04-20 | B171: MailChimp 04/20 PURCHASE Atlanta GA DEBIT CARD *7411 | C171: -59 | D171: 7199.66 | E171: LRC | F171: Peregrine | G171: Mailchimp | H171: 220624 - LRC ADS_BG ER Peregrine Billable 09-2022 | I171: 011-22 | J171: 220420 - Peregrine - Mailchimp Essentials MC15506606.pdf
A172: 2022-05-20 | B172: MailChimp 05/20 PURCHASE Atlanta GA DEBIT CARD *7411 | C172: -59 | D172: 1079.1 | E172: LRC | F172: Peregrine | G172: Mailchimp | H172: 220624 - LRC ADS_BG ER Peregrine Billable 09-2022 | I172: 011-22 | J172: 220520 - Peregrine - Mailchimp Essentials MC15741014.pdf
A173: 2022-06-08 | B173: DREAMSTIME.COM 06/07 PURCHASE BRENTWOOD TN DEBIT CARD *7411 | C173: -16.99 | D173: 792.28 | E173: LRC | F173: Peregrine | H173: 220624 - LRC ADS_BG ER Peregrine Billable 09-2022 | I173: 011-22 | J173: 220607 - Dreamtime LLC 23829472.pdf
A174: 2022-06-08 | B174: DREAMSTIME.COM 06/07 PURCHASE BRENTWOOD TN DEBIT CARD *7411 | C174: -1 | D174: 791.28 | E174: LRC | F174: Peregrine | H174: 220624 - LRC ADS_BG ER Peregrine Billable 09-2022 | I174: 011-22 | J174: 220607 - Dreamtime LLC 23829472.pdf
A175: 2022-06-21 | B175: MailChimp 06/20 PURCHASE Atlanta GA DEBIT CARD *7411 | C175: -59 | D175: 714.29 | E175: LRC | F175: Peregrine | G175: Mailchimp | H175: 220624 - LRC ADS_BG ER Peregrine Billable 09-2022 | I175: 011-22 | J175: 220620 - Peregrine - Mailchimp Essentials MC15971334.pdf
A176: 2022-07-08 | B176: PEREGRINE AVIONI DES:QUICKBOOKS ID:375020979 INDN:AVIAGLOBAL GROUP, LLC CO ID:1722616653 PPD | C176: 3000 | D176: 3553.47 | F176: Peregrine
A177: 2022-07-20 | B177: MailChimp 07/20 PURCHASE Atlanta GA DEBIT CARD *7411 | C177: -59 | D177: 3464.86 | E177: LRC | F177: Peregrine | G177: Mailchimp | H177: 221020 - LRC ADS_BG ER Peregrine Billable 13-2022 | I177: 015-22 | J177: 220720 - Peregrine - Mailchimp Essentials MC16197922.pdf
A178: 2022-08-08 | B178: PEREGRINE AVIONI DES:QUICKBOOKS ID:375020979 INDN:AVIAGLOBAL GROUP, LLC CO ID:1722616653 PPD | C178: 3000 | D178: 6314.91 | F178: Peregrine
A179: 2022-08-22 | B179: MailChimp 08/20 PURCHASE Atlanta GA DEBIT CARD *7411 | C179: -59 | D179: 6226.3 | E179: LRC | F179: Peregrine | G179: Mailchimp | H179: 221020 - LRC ADS_BG ER Peregrine Billable 13-2022 | I179: 015-22 | J179: 220820 - Peregrine - Mailchimp Essentials MC16420842.pdf
A180: 2022-08-31 | B180: PEREGRINE AVIONI DES:QUICKBOOKS ID:375020979 INDN:AVIAGLOBAL GROUP, LLC CO ID:1722616653 PPD | C180: 3194.99 | D180: 9421.29 | F180: Peregrine
A181: 2022-09-14 | B181: PEREGRINE AVIONI DES:QUICKBOOKS ID:375020979 INDN:AVIAGLOBAL GROUP, LLC CO ID:1722616653 PPD | C181: 3000 | D181: 3964.34 | F181: Peregrine
A182: 2022-09-20 | B182: MailChimp 09/20 PURCHASE Atlanta GA DEBIT CARD *7411 | C182: -59 | D182: 3875.73 | E182: LRC | F182: Peregrine | G182: Mailchimp | H182: 221020 - LRC ADS_BG ER Peregrine Billable 13-2022 | I182: 015-22 | J182: 220920 - Peregrine - Mailchimp Essentials MC16642305.pdf
A183: 2022-10-06 | B183: DOWNLOAD-MONITOR. 10/06 PURCHASE BUCURESTI DEBIT CARD *7429 | C183: -159 | D183: 3686.78 | E183: FWC | F183: Peregrine | H183: 221201 - FWC ER Peregrine Billable EOY-2022 | I183: 018-22 | J183: Peregrine - Download Monitor Invoice-3198.pdf
A184: 2022-10-06 | B184: INTERNATIONAL TRANSACTION FEE 10/06 DOWNLOAD-MONITOR. BUCURESTI DEBIT CARD *7429 | C184: -4.77 | D184: 3682.01 | E184: FWC | F184: Peregrine | H184: 221201 - FWC ER Peregrine Billable EOY-2022 | I184: 018-22 | J184: 221006 - INTERNATIONAL TRANSACTION FEE DOWNLOAD-MONITOR
A185: 2022-10-20 | B185: MailChimp 10/20 PURCHASE Atlanta GA DEBIT CARD *7411 | C185: -59 | D185: 3593.4 | E185: LRC | F185: Peregrine | G185: Mailchimp | H185: 221020 - LRC ADS_BG ER Peregrine Billable 13-2022 | I185: 015-22 | J185: 221020 - Peregrine - Mailchimp Essentials MC16642305.pdf
A186: 2022-11-02 | B186: PEREGRINE AVIONI DES:QUICKBOOKS ID:375020979 INDN:AVIAGLOBAL GROUP, LLC CO ID:1722616653 PPD | C186: 2000 | D186: 5510.95 | F186: Peregrine
A187: 2022-11-21 | B187: MailChimp 11/20 PURCHASE Atlanta GA DEBIT CARD *7411 | C187: -59 | D187: 5422.34 | E187: LRC | F187: Peregrine | G187: Mailchimp | H187: 221201 - LRC ADS_BG ER Peregrine Billable 14-2022 | I187: 017-22 | J187: 221120 - Peregrine - Mailchimp Essentials MC17092309.pdf
A188: 2022-11-28 | B188: INMOTIONHOSTING.C 11/25 PURCHASE 888-3214678 CA DEBIT CARD *7429 | C188: -479.85 | D188: 4822.5 | E188: FWC | F188: Peregrine | H188: 221201 - FWC ER Peregrine Billable EOY-2022 | I188: 018-22 | J188: Peregrine - InMotion Hosting - Receipt - IMH-414-1451828-5.pdf
A189: 2022-12-09 | B189: PEREGRINE AVIONI DES:QUICKBOOKS ID:375020979 INDN:AVIAGLOBAL GROUP, LLC CO ID:1722616653 PPD | C189: 2000 | D189: 6792.55 | F189: Peregrine
A190: 2022-12-20 | B190: PEREGRINE AVIONI DES:QUICKBOOKS ID:375020979 INDN:AVIAGLOBAL GROUP, LLC CO ID:1722616653 PPD | C190: 7063.61 | D190: 13786.97 | F190: Peregrine
A191: 2022-12-20 | B191: MailChimp 12/20 PURCHASE Atlanta GA DEBIT CARD *7411 | C191: -59 | D191: 13727.97 | E191: LRC | F191: Peregrine | G191: Mailchimp | H191: 221223 - LRC ADS_BG ER Peregrine Billable 17-2022 | I191: 004-23 | J191: 221220 - Peregrine - Mailchimp Essentials MC17309841.pdf
A192: 2023-01-05 | B192: PEREGRINE AVIONI DES:QUICKBOOKS ID:375020979 INDN:AVIAGLOBAL GROUP, LLC CO ID:1722616653 PPD | C192: 441.97 | D192: 2601.05 | F192: Peregrine
A193: 2023-01-20 | B193: Mailchimp 01/20 PURCHASE Atlanta GA DEBIT CARD *7411 | C193: -69 | D193: 1875.33 | E193: LRC | F193: Peregrine | I193: 002-23 | J193: 230120 - Peregrine - Mailchimp Essentials MC17521714.pdf
A194: 2023-01-24 | B194: ELEMENTOR 01/24 PURCHASE WILMINGTON DE DEBIT CARD *7429 | C194: -49 | D194: 1826.33 | E194: FWC | F194: Peregrine | I194: 004-23
A195: 2023-01-25 | B195: REALLY-SIMPLE-SSL 01/24 PURCHASE GRONINGEN DEBIT CARD *7429 | C195: -23.2 | D195: 1803.13 | E195: FWC | F195: Peregrine | I195: 004-23
A196: 2023-01-25 | B196: COMPLIANZ-GDPR-PR 01/25 PURCHASE GRONINGEN DEBIT CARD *7429 | C196: -45 | D196: 1758.13 | E196: FWC | F196: Peregrine | I196: 004-23
A197: 2023-01-25 | B197: INTERNATIONAL TRANSACTION FEE 01/25 COMPLIANZ-GDPR-PR GRONINGEN DEBIT CARD *7429 | C197: -1.35 | D197: 1756.78 | E197: FWC | F197: Peregrine | I197: 004-23
A198: 2023-01-25 | B198: INTERNATIONAL TRANSACTION FEE 01/24 REALLY-SIMPLE-SSL GRONINGEN DEBIT CARD *7429 | C198: -0.7 | D198: 1756.08 | E198: FWC | F198: Peregrine | I198: 004-23
A199: 2023-02-15 | B199: PEREGRINE AVIONI DES:QUICKBOOKS ID:375020979 INDN:AVIAGLOBAL GROUP, LLC CO ID:1722616653 PPD | C199: 2000 | D199: 3708.14 | F199: Peregrine
A200: 2023-02-21 | B200: Mailchimp 02/20 PURCHASE Atlanta GA DEBIT CARD *7411 | C200: -69 | D200: 3625.41 | E200: LRC | F200: Peregrine | I200: 002-23
C203: =SUM(C148:C200) -> 32898.74
C204: =-Sheet4!D39-Sheet4!C39 -> -37214.99
C205: =SUM(C203:C204) -> -4316.25

Sheet Lookup
B2: Debit card | C2: Who
B3: 0975 | C3: HEA
B4: 7411 | C4: LRC
B5: 7429 | C5: FWC

Sheet Sheet3
A1: 15‐Mar‐22 AGG MasterCard G150 campaign Stamps.com Mailing material 30.12$ US 1.00 30.12$ | J1: 30.12
A2: 15‐Mar‐22 AGG MasterCard G150 campaign Amazon Brochure stock, envelopes 66.66$ US 1.00 66.66$ | J2: 66.66
A3: 17‐Mar‐22 ADS‐B Global G150 campaign ADS‐B Glbl Brochure printing two‐sided color laser 180 US 0.50 90.00$
A4: 18‐Mar‐22 AGG MasterCard G150 campaign Stamps.com USPS STAMPS 50.00$ US 1.00 50.00$ | J4: 50
A5: 18‐Mar‐22 AGG MasterCard G150 campaign Stamps.com USPS STAMPS 100.00$ US 1.00 100.00$ | J5: 100
A6: 18‐Mar‐22 AGG MasterCard G150 campaign Amazon Brochure stock 29.63$ US 1.00 29.63$ | J6: 29.63
A7: 20‐Mar‐22 AGG MasterCard Dues/Subscriptions Mailchimp Mailchimp Essentials 59.00$ US 1.00 59.00$ | J7: 59
A8: 23‐Mar‐22 AGG MasterCard G150 campaign Stamps.com USPS STAMPS 25.00$ US 1.00 25.00 | J8: 25

Sheet Sheet2
A1: Column1 | B1: Column2 | C1: Column3 | D1: Column4 | E1: Column5 | F1: Column6 | G1: Column7 | H1: Column8
A2: 11.62 | H2: - AGG - Mailchimp Essentials
A4: MC15956138 | F4: =F8&$H$2&TRIM(A4)&".pdf" -> 220618 - AGG - Mailchimp Essentials MC15956138.pdf
A6: Essentials plan (500 contacts)
A8: Sat, Jun 18, 2022 3:18 am | E8: =DATEVALUE(MID(A8,6,12)) -> 2022-06-18 | F8: =TEXT(E8,"YYMMDD") -> 220618
A10: 11.62
A12: MC15724938 | F12: =F16&$H$2&TRIM(A12)&".pdf" -> 220518 - AGG - Mailchimp Essentials MC15724938.pdf
A14: Essentials plan (500 contacts)
A16: Wed, May 18, 2022 3:35 am | E16: =DATEVALUE(MID(A16,6,12)) -> 2022-05-18 | F16: =TEXT(E16,"YYMMDD") -> 220518
A18: 11.62
A20: MC15490450 | F20: =F24&$H$2&TRIM(A20)&".pdf" -> 220418 - AGG - Mailchimp Essentials MC15490450.pdf
A22: Essentials plan (500 contacts)
A24: Mon, Apr 18, 2022 3:35 am | E24: =DATEVALUE(MID(A24,6,12)) -> 2022-04-18 | F24: =TEXT(E24,"YYMMDD") -> 220418
A26: 11.62
A28: MC15252178 | F28: =F32&$H$2&TRIM(A28)&".pdf" -> 220318 - AGG - Mailchimp Essentials MC15252178.pdf
A30: Essentials plan (500 contacts)
A32: Fri, Mar 18, 2022 3:34 am | E32: =DATEVALUE(MID(A32,6,12)) -> 2022-03-18 | F32: =TEXT(E32,"YYMMDD") -> 220318
A34: 11.62
A36: MC15010226 | F36: =F40&$H$2&TRIM(A36)&".pdf" -> 220218 - AGG - Mailchimp Essentials MC15010226.pdf
A38: Essentials plan (500 contacts)
A40: Fri, Feb 18, 2022 2:35 am | E40: =DATEVALUE(MID(A40,6,12)) -> 2022-02-18 | F40: =TEXT(E40,"YYMMDD") -> 220218
A42: 9.49
A44: MC14760854
A46: Essentials plan (500 contacts)
A48: Tue, Jan 18, 2022 3:11 am

Sheet Sheet1
A1: W:\$ AviaGlobalGroup\AGG Finance\AGG Credit Card Receipts\*AGG*
I2: =IFERROR(INDEX(ListOfFiles,ROW()-2),"") -> 
I3: =IFERROR(INDEX(ListOfFiles,ROW()-2),"") -> 
A4: =IFERROR(INDEX(FileNameList,ROW()-2),"") ->  | I4: =IFERROR(INDEX(ListOfFiles,ROW()-2),"") -> 
I5: =IFERROR(INDEX(ListOfFiles,ROW()-2),"") -> 
I6: =IFERROR(INDEX(ListOfFiles,ROW()-2),"") -> 
I7: =IFERROR(INDEX(ListOfFiles,ROW()-2),"") -> 
I8: =IFERROR(INDEX(ListOfFiles,ROW()-2),"") -> 
I9: =IFERROR(INDEX(ListOfFiles,ROW()-2),"") -> 
I10: =IFERROR(INDEX(ListOfFiles,ROW()-2),"") -> 
I11: =IFERROR(INDEX(ListOfFiles,ROW()-2),"") -> 
I12: =IFERROR(INDEX(ListOfFiles,ROW()-2),"") -> 
I13: =IFERROR(INDEX(ListOfFiles,ROW()-2),"") -> 
I14: =IFERROR(INDEX(ListOfFiles,ROW()-2),"") -> 
I15: =IFERROR(INDEX(ListOfFiles,ROW()-2),"") -> 
I16: =IFERROR(INDEX(ListOfFiles,ROW()-2),"") -> 
I17: =IFERROR(INDEX(ListOfFiles,ROW()-2),"") -> 
I18: =IFERROR(INDEX(ListOfFiles,ROW()-2),"") -> 
I19: =IFERROR(INDEX(ListOfFiles,ROW()-2),"") -> 
I20: =IFERROR(INDEX(ListOfFiles,ROW()-2),"") -> 
I21: =IFERROR(INDEX(ListOfFiles,ROW()-2),"") -> 
I22: =IFERROR(INDEX(ListOfFiles,ROW()-2),"") -> 
I23: =IFERROR(INDEX(ListOfFiles,ROW()-2),"") -> 
I24: =IFERROR(INDEX(ListOfFiles,ROW()-2),"") -> 
I25: =IFERROR(INDEX(ListOfFiles,ROW()-2),"") -> 
I26: =IFERROR(INDEX(ListOfFiles,ROW()-2),"") -> 

Sheet Sheet4
B1: AGG MC | C1: Adder | D1: Total | H1: Invoice Month | J1: Invoice Number | K1: Invoice | L1: Amount | M1: Invoice Date | N1: Posted
A2: - | B2: =-SUMIFS('Peregrine transactions'!$C$1:$C$144,'Peregrine transactions'!$I$1:$I$144,Sheet4!A2,'Peregrine transactions'!$F$1:$F$144,"Peregrine") -> 0 | D2: =B2+C2 -> 0 | L2: 4138
A3: 002-23 | B3: =-SUMIFS('Peregrine transactions'!$C$1:$C$144,'Peregrine transactions'!$I$1:$I$144,Sheet4!A3,'Peregrine transactions'!$F$1:$F$144,"Peregrine") -> 138 | D3: =B3+C3 -> 138 | H3: Feb? | I3: WWW Support/ Enhanced | J3: AGGPERAPA Inv 002-22 | K3: =RIGHT(J3,6) -> 002-22 | L3: 3000 | M3: 2022-02-15 | N3: 2022-03-17
A4: 006-22 | B4: =-SUMIFS('Peregrine transactions'!$C$1:$C$144,'Peregrine transactions'!$I$1:$I$144,Sheet4!A4,'Peregrine transactions'!$F$1:$F$144,"Peregrine") -> 360.41 | C4: 90 | D4: =B4+C4 -> 450.41 | E4: TRUE | I4: Expenses | J4: AGGPERAPA ERInv 003-22 | K4: =RIGHT(J4,6) -> 003-22 | L4: 850 | M4: 2022-02-21 | N4: 2022-03-17
A5: 011-22 | B5: =-SUMIFS('Peregrine transactions'!$C$1:$C$144,'Peregrine transactions'!$I$1:$I$144,Sheet4!A5,'Peregrine transactions'!$F$1:$F$144,"Peregrine") -> 194.99 | D5: =B5+C5 -> 194.99 | E5: TRUE | J5: Payment | L5: -3850 | N5: 2022-03-17
A6: 015-22 | B6: =-SUMIFS('Peregrine transactions'!$C$1:$C$144,'Peregrine transactions'!$I$1:$I$144,Sheet4!A6,'Peregrine transactions'!$F$1:$F$144,"Peregrine") -> 236 | D6: =B6+C6 -> 236 | E6: TRUE | H6: Mar? | I6: WWW Support/ Enhanced | J6: AGGPERAPA Inv 004-22 | K6: =RIGHT(J6,6) -> 004-22 | L6: 3000 | M6: 2022-03-15 | N6: 2022-04-20
A7: 017-22 | B7: =-SUMIFS('Peregrine transactions'!$C$1:$C$144,'Peregrine transactions'!$I$1:$I$144,Sheet4!A7,'Peregrine transactions'!$F$1:$F$144,"Peregrine") -> 59 | D7: =B7+C7 -> 59 | E7: TRUE | I7: Expenses | J7: AGGPERAPA ERInv 005-22 | K7: 005-22 | L7: 106.69 | M7: 2022-03-15 | N7: 2022-04-20
A8: 018-22 | B8: =-SUMIFS('Peregrine transactions'!$C$1:$C$144,'Peregrine transactions'!$I$1:$I$144,Sheet4!A8,'Peregrine transactions'!$F$1:$F$144,"Peregrine") -> 643.62 | C8: 124.99 | D8: =B8+C8 -> 768.61 | E8: TRUE | I8: Expenses | J8: AGGPERAPA ERInv 006-22 | K8: 006-22 | L8: 450.41 | M8: 2022-03-23 | N8: 2022-04-20
A9: 020-22 | B9: =-SUMIFS('Peregrine transactions'!$C$1:$C$144,'Peregrine transactions'!$I$1:$I$144,Sheet4!A9,'Peregrine transactions'!$F$1:$F$144,"Peregrine") -> 441.97 | D9: =B9+C9 -> 441.97 | E9: TRUE | J9: Payment | L9: -3557.1 | N9: 2022-04-20
H10: Apr? | I10: WWW Support/ Enhanced | J10: AGGPERAPA Inv 007-22 | K10: =RIGHT(J10,6) -> 007-22 | L10: 3000 | M10: 2022-04-18 | N10: 2022-07-08
B11: AGG MC | C11: Adder | D11: Retainer | E11: Total | J11: Payment | L11: -3000 | N11: 2022-07-08
A12: 001-22 | D12: 1500 | E12: =SUM(B12:D12) -> 1500 | F12: =E12 -> 1500 | H12: May? | I12: WWW Support/ Enhanced | J12: AGGPERAPA Inv 008-22 | K12: =RIGHT(J12,6) -> 008-22 | L12: 3000 | M12: 2022-05-26 | N12: 2022-08-08
A13: 001-22 | D13: 1500 | E13: =SUM(B13:D13) -> 1500 | F13: =E13 -> 1500 | J13: Payment | L13: -3000 | N13: 2022-08-08
A14: 002-22 | B14: =IFERROR(INDEX($A$2:$D$9,MATCH(A14,$A$2:$A$9,0),2),0) -> 0 | C14: =IFERROR(INDEX($A$2:$D$9,MATCH(A14,$A$2:$A$9,0),3),0) -> 0 | D14: 3000 | E14: =SUM(B14:D14) -> 3000 | F14: =E14 -> 3000 | H14: Jun? | I14: WWW Support/ Enhanced | J14: AGGPERAPA Inv 009-22 | K14: =RIGHT(J14,6) -> 009-22 | L14: 3000 | M14: 2022-06-16 | N14: 2022-08-31
A15: 003-22 | B15: 850 | C15: 0 | E15: =SUM(B15:D15) -> 850 | F15: =-E15 -> -850 | I15: Expenses | J15: AGGPERAPA ERInv 011-22 | K15: 011-22 | L15: 194.99 | M15: 2022-07-15 | N15: 2022-08-31
A16: 004-22 | B16: =IFERROR(INDEX($A$2:$D$9,MATCH(A16,$A$2:$A$9,0),2),0) -> 0 | C16: 0 | D16: 3000 | E16: =SUM(B16:D16) -> 3000 | F16: =E16 -> 3000 | J16: Payment | L16: -3194.99 | N16: 2022-08-31
A17: 005-22 | B17: 106.69 | C17: 0 | E17: 106.69 | F17: =-E17 -> -106.69 | H17: Jul? | I17: WWW Support/ Enhanced | J17: AGGPERAPA Inv 010-22 | K17: =RIGHT(J17,6) -> 010-22 | L17: 3000 | M17: 2022-07-15 | N17: 2022-09-14
A18: 006-22 | B18: 360.41 | C18: 90 | E18: 450.41 | F18: -450.41 | J18: Payment | L18: -3000 | N18: 2022-09-14
A19: 007-22 | B19: 0 | C19: 0 | D19: 3000 | E19: =SUM(B19:D19) -> 3000 | F19: =E19 -> 3000 | H19: Aug? | I19: WWW Support | J19: AGGPERAPA Inv 012-22 | K19: =RIGHT(J19,6) -> 012-22 | L19: 2000 | M19: 2022-08-01 | N19: 2022-11-02
A20: 008-22 | B20: 0 | C20: 0 | D20: 3000 | E20: =SUM(B20:D20) -> 3000 | F20: 3000 | J20: Payment | L20: -2000 | N20: 2022-11-02
A21: 009-22 | B21: 0 | C21: 0 | D21: 3000 | E21: =SUM(B21:D21) -> 3000 | F21: 3000 | H21: Sept? | I21: WWW Support | J21: AGGPERAPA Inv 013-22 | K21: =RIGHT(J21,6) -> 013-22 | L21: 2000 | M21: 2022-09-01 | N21: 2022-12-06
A22: 011-22 | B22: 194.99 | C22: 0 | E22: 194.99 | F22: =-E22 -> -194.99 | J22: Payment | L22: -2000 | N22: 2022-12-06
A23: 010-22 | B23: 0 | C23: 0 | D23: 3000 | E23: =SUM(B23:D23) -> 3000 | F23: =E23 -> 3000 | H23: Oct? | I23: WWW Support | J23: AGGPERAPA Inv 014-22 | K23: =RIGHT(J23,6) -> 014-22 | L23: 2000 | M23: 2022-10-01
A24: 012-22 | B24: 0 | C24: 0 | D24: 2000 | E24: =SUM(B24:D24) -> 2000 | F24: 2000 | I24: Expenses (New ER) | J24: AGGPERAPA Inv 015-22 | K24: 015-22 | L24: 236 | M24: 2022-11-10
A25: 013-22 | B25: 0 | C25: 0 | D25: 2000 | E25: =SUM(B25:D25) -> 2000 | F25: 2000 | H25: Nov? | I25: WWW Support | J25: AGGPERAPA Inv 016-22 | K25: 016-22 | L25: 2000 | M25: 2022-12-02
A26: 014-22 | B26: 0 | C26: 0 | D26: 2000 | E26: =SUM(B26:D26) -> 2000 | F26: 2000 | I26: Expenses (New LRC ER) | J26: AGGPERAPA Inv 017-22 | K26: 017-22 | L26: 59 | M26: 2022-12-02
A27: 015-22 | B27: 236 | C27: 0 | E27: 236 | F27: =-E27 -> -236 | I27: Expenses (New FWC ER) | J27: AGGPERAPA Inv 018-22 | K27: 018-22 | L27: 768.61 | M27: 2022-12-02
A28: 016-22 | B28: 0 | C28: 0 | D28: 2000 | E28: =SUM(B28:D28) -> 2000 | F28: =E28 -> 2000 | H28: Dec | I28: WWW Support | J28: AGGPERAPA Inv 019-22 | K28: 019-22 | L28: 2000 | M28: 2022-12-15
A29: 017-22 | B29: 59 | C29: 0 | E29: 59 | F29: =-E29 -> -59 | J29: Payment | L29: -7063.61 | N29: 2022-12-20
A30: 018-22 | B30: 643.62 | C30: 124.99 | E30: 768.61 | F30: -768.61 | H30: Jan | I30: WWW Support | J30: AGGPERAPA Inv 001-23 | K30: =RIGHT(J30,6) -> 001-23 | L30: 2000 | M30: 2023-01-15
A31: 019-22 | B31: 0 | C31: 0 | D31: 2000 | E31: =SUM(B31:D31) -> 2000 | F31: =E31 -> 2000 | J31: Payment | L31: -2000 | N31: 2023-02-15
A32: 020-22 | B32: 441.97 | C32: =IFERROR(INDEX($A$2:$D$9,MATCH(A32,$A$2:$A$9,0),3),0) -> 0 | E32: =SUM(B32:D32) -> 441.97 | F32: =-E32 -> -441.97
A33: 001-23 | B33: 0 | C33: 0 | D33: 2000 | E33: =SUM(B33:D33) -> 2000 | F33: =E33 -> 2000 | I33: Mailchimp Expenses | J33: AGGPERAPA Inv 002-23 | K33: =RIGHT(J33,6) -> 002-23 | L33: 138
A34: 002-23 | B34: 138 | C34: 0 | D34: 2000 | E34: =SUM(B34:D34) -> 2138 | F34: =E34-B34-B34 -> 1862 | H34: Feb | I34: WWW Support | J34: AGGPERAPA Inv 002-23 | K34: 002-23 | L34: 2000 | M34: 2023-02-20
A35: 003-23 | B35: 0 | C35: =IFERROR(INDEX($A$2:$D$9,MATCH(A35,$A$2:$A$9,0),3),0) -> 0 | D35: 2000 | E35: =SUM(B35:D35) -> 2000 | F35: 2000 | H35: Feb | I35: G150 Commision | J35: AGGPERAPA Inv 003-23 | K35: 003-23 | L35: 2000 | M35: 2023-02-20
A36: 004-23 | B36: 59 | C36: 0 | E36: =SUM(B36:D36) -> 59 | F36: =-E36 -> -59
A37: 004-23 | B37: 119.25 | C37: 0 | E37: =SUM(B37:D37) -> 119.25 | F37: =-E37 -> -119.25
B39: =SUM(B13:B37) -> 3208.93 | C39: =SUM(C13:C37) -> 214.99 | D39: =SUM(D12:D37) -> 37000 | E39: =SUM(E13:E37) -> 38923.92
B41: =SUM(B14:B33) -> 2892.68 | C41: =SUM(C14:C33) -> 214.99 | D41: =SUM(D14:D33) -> 30000 | E41: =SUM(E14:E33) -> 33107.67
E44: 1500
E45: 1500
E46: 3850
E47: 3557.1
E48: 3000
E49: 3000
E50: 3194.99
E51: 3000
E52: 2000
E53: 2000
E54: 7063.61
E55: 441.97
E56: 2000
